Workbook

Sheet TR166
A1: Indication of FFR results for Tender Round 166, accepted tenders will be officially notified via an issued acceptance letter.
A2: Tender Ref | D2: Company Name | E2: Tendered Unit (BMU/Unit ID) | F2: TO connection / DNO connection | G2: Generation Type | H2: Start Date | I2: End Date | J2: Tendered Period (dd.mm.yy - dd.mm.yy) | K2: Applicable FFR Capability Data Table | L2: Tendered Frames per Service Day | U2: Tendered Prices*** | X2: BMUs Only - Applicable Balancing Service (i.e. ABSVD Imbalance) YES/NO | Y2: Dynamic Providers Only | AC2: Dynamic Providers only | AJ2: Please indicate as per detail change provision if you are adding volume | AK2: Please state the accepted tender that you are stacking onto | AL2: Please state if this is an all or nothing bid. Clearly reference what lines are included in each all or nothing bid | AM2: Please indicate if this is a mutually exclusive tender | AN2: Non-Dynamic Providers | AP2: Post Code | AQ2: Comments
B3: Status | C3: Rejection Code | L3: Working Days (Mon-Fri) | O3: Saturdays | R3: Sundays/Bank Holidays | U3: Availability Fee (£/h) | V3: Nomination Fee (£/h) | W3: Window Initiation Fee (£/window) | Y3: Maximum Part Load Point (MW) | Z3: Minimum Part Load Point (MW) | AA3: Minimum MEL (MW) | AB3: Maximum SEL (MW) | AN3: Volume of Response Tendered
L4: , | M4: To | N4: Duration (h) | O4: From | P4: To | Q4: Duration (h) | R4: From | S4: To | T4: Duration (h) | AC4: Primary Response (max.) @ 0.2Hz (MW) | AD4: Primary Response (max.) @ 0.5Hz (MW) | AE4: Primary Response (max.) @ 0.8Hz (MW) | AF4: Secondary Response (max.) @ 0.2/0.2Hz (MW) | AG4: Secondary Response (max.) @ 0.5/0.5Hz (MW) | AH4: High Frequency Response (max.) @ 0.2Hz (MW) | AI4: High Frequency Response (max.) @ 0.5Hz (MW) | AN4: Automatic Response Energy Deliverable by 10s (MW) | AO4: Automatic Response Energy Deliverable by 30s (MW)
A5: 166 | D5: Example Company | E5: Ex-FFR-1 | F5: TO connection | G5: Wind | H5: =#REF! ->  | I5: =#REF! ->  | J5: =IFERROR(TEXT(H5,"DD.MM.YY")&" - "&TEXT(I5,"DD.MM.YY")&" ("&DATEDIF(H5,I5+1,"m")&" months)","Tender End Date is Before Start Date") -> Tender End Date is Before Start Date | K5: As per FFR framework agreement | L5: 2300 | M5: 700 | N5: =IF(L5>M5, (2400-L5+M5)/100, IF(AND(L5="",M5="",L5=M5), "", IF(L5=M5,24,(M5-L5)/100))) -> 8 | O5: 2300 | P5: 700 | Q5: =IF(O5>P5, (2400-O5+P5)/100, IF(AND(O5="",P5="",O5=P5), "", IF(O5=P5,24,(P5-O5)/100))) -> 8 | R5: 2300 | S5: 700 | T5: =IF(R5>S5, (2400-R5+S5)/100, IF(AND(R5="",S5="",R5=S5), "", IF(R5=S5,24,(S5-R5)/100))) -> 8 | U5: 100 | V5: 600 | W5: - | X5: - | Y5: - | Z5: - | AA5: - | AB5: - | AC5: - | AD5: - | AE5: - | AF5: - | AG5: - | AH5: - | AI5: - | AJ5: - | AK5: - | AN5: - | AO5: - | AP5: - | AQ5: -
A6: =A5 -> 166 | D6: Example Company | E6: =E5 -> Ex-FFR-1 | F6: DNO connection | G6: Gas | H6: =H5 ->  | I6: =I5 ->  | J6: =IFERROR(TEXT(H6,"DD.MM.YY")&" - "&TEXT(I6,"DD.MM.YY")&" ("&DATEDIF(H6,I6+1,"m")&" months)","Tender End Date is Before Start Date") -> Tender End Date is Before Start Date | K6: As per FFR framework agreement | L6: 700 | M6: 2300 | N6: =IF(L6>M6, (2400-L6+M6)/100, IF(AND(L6="",M6="",L6=M6), "", IF(L6=M6,24,(M6-L6)/100))) -> 16 | O6: 700 | P6: 2300 | Q6: =IF(O6>P6, (2400-O6+P6)/100, IF(AND(O6="",P6="",O6=P6), "", IF(O6=P6,24,(P6-O6)/100))) -> 16 | R6: 700 | S6: 2300 | T6: =IF(R6>S6, (2400-R6+S6)/100, IF(AND(R6="",S6="",R6=S6), "", IF(R6=S6,24,(S6-R6)/100))) -> 16 | U6: 600 | V6: 100 | W6: - | X6: - | Y6: - | Z6: - | AA6: - | AB6: - | AC6: - | AD6: - | AE6: - | AF6: - | AG6: - | AH6: - | AI6: - | AJ6: - | AK6: - | AN6: - | AO6: - | AP6: - | AQ6: -
A7: =A5+0.001 -> 166.001 | B7: Rejected | C7: 1.2 | D7: BLOXWICH ENERGY STORAGE LIMITED | E7: ARNKB-1 | F7: DNO connection | G7: Battery | H7: 2023-10-31 | I7: 2023-11-30 | J7: 31.10.23 - 30.11.23 (1 months) | K7: As per FFR framework agreement | L7: 2300 | M7: 1500 | N7: =IF(L7>M7, (2400-L7+M7)/100, IF(AND(L7="",M7="",L7=M7), "", IF(L7=M7,24,(M7-L7)/100))) -> 16 | O7: 2300 | P7: 1500 | Q7: =IF(O7>P7, (2400-O7+P7)/100, IF(AND(O7="",P7="",O7=P7), "", IF(O7=P7,24,(P7-O7)/100))) -> 16 | R7: 2300 | S7: 1500 | T7: =IF(R7>S7, (2400-R7+S7)/100, IF(AND(R7="",S7="",R7=S7), "", IF(R7=S7,24,(S7-R7)/100))) -> 16 | U7: 358.43 | X7: YES | AC7: 15.6 | AD7: 39 | AE7: 39 | AF7: 15.6 | AG7: 39 | AH7: 15.6 | AI7: 39 | AL7: A | AP7: WS2
A8: =A7+0.001 -> 166.002 | B8: Rejected | C8: 1.2 | D8: BLOXWICH ENERGY STORAGE LIMITED | E8: ARNKB-1 | F8: DNO connection | G8: Battery | H8: 2023-11-01 | I8: 2023-11-30 | J8: 01.11.23 - 30.11.23 (1 months) | K8: As per FFR framework agreement | L8: 1500 | M8: 2300 | N8: 8 | O8: 1500 | P8: 2300 | Q8: 8 | R8: 1500 | S8: 2300 | T8: 8 | U8: 375.64 | X8: YES | AC8: 15.6 | AD8: 39 | AE8: 39 | AF8: 15.6 | AG8: 39 | AH8: 15.6 | AI8: 39 | AL8: B | AP8: WS2
A9: 166.003 | B9: Rejected | C9: 1.2 | D9: BLOXWICH ENERGY STORAGE LIMITED | E9: ARNKB-1 | F9: DNO connection | G9: Battery | H9: 2023-10-31 | I9: 2023-11-30 | J9: 31.10.23 - 30.11.23 (1 months) | K9: As per FFR framework agreement | L9: 2300 | M9: 2300 | N9: 24 | O9: 2300 | P9: 2300 | Q9: 24 | R9: 2300 | S9: 2300 | T9: 24 | U9: 361.05 | X9: YES | AC9: 15.6 | AD9: 39 | AE9: 39 | AF9: 15.6 | AG9: 39 | AH9: 15.6 | AI9: 39 | AL9: C | AM9: Mutually exclusive with A and B | AP9: WS2
A10: 166.004 | B10: Rejected | C10: 1.2 | D10: GRIDRESERVE LIMITED | E10: NFSE02 | F10: DNO connection | G10: Battery | H10: 2023-10-31 | I10: 2023-11-30 | J10: 31.10.23 - 30.11.23 (1 months) | K10: As per FFR framework agreement | L10: 2300 | M10: 1500 | N10: 16 | O10: 2300 | P10: 1500 | Q10: 16 | R10: 2300 | S10: 1500 | T10: 16 | U10: 246.57 | X10: YES | AC10: 11.2 | AD10: 28 | AE10: 28 | AF10: 11.2 | AG10: 28 | AH10: 11.2 | AI10: 28 | AL10: D | AP10: EH48
A11: 166.005 | B11: Rejected | C11: 1.2 | D11: GRIDRESERVE LIMITED | E11: NFSE02 | F11: DNO connection | G11: Battery | H11: 2023-11-01 | I11: 2023-11-30 | J11: 01.11.23 - 30.11.23 (1 months) | K11: As per FFR framework agreement | L11: 1500 | M11: 2300 | N11: 8 | O11: 1500 | P11: 2300 | Q11: 8 | R11: 1500 | S11: 2300 | T11: 8 | U11: 258.92 | X11: YES | AC11: 11.2 | AD11: 28 | AE11: 28 | AF11: 11.2 | AG11: 28 | AH11: 11.2 | AI11: 28 | AL11: E | AP11: EH48
A12: 166.006 | B12: Rejected | C12: 1.2 | D12: GRIDRESERVE LIMITED | E12: NFSE02 | F12: DNO connection | G12: Battery | H12: 2023-10-31 | I12: 2023-11-30 | J12: 31.10.23 - 30.11.23 (1 months) | K12: As per FFR framework agreement | L12: 2300 | M12: 2300 | N12: 24 | O12: 2300 | P12: 2300 | Q12: 24 | R12: 2300 | S12: 2300 | T12: 24 | U12: 249.57 | X12: YES | AC12: 11.2 | AD12: 28 | AE12: 28 | AF12: 11.2 | AG12: 28 | AH12: 11.2 | AI12: 28 | AL12: F | AM12: Mutually exclusive with D and E | AP12: EH48
A13: 166.007 | B13: Rejected | C13: 4 | D13: NEVENDON ENERGY STORAGE LIMITED | E13: AFSE01 | F13: DNO connection | G13: Battery | H13: 2023-10-31 | I13: 2023-11-30 | J13: 31.10.23 - 30.11.23 (1 months) | K13: As per FFR framework agreement | L13: 2300 | M13: 1500 | N13: 16 | O13: 2300 | P13: 1500 | Q13: 16 | R13: 2300 | S13: 1500 | T13: 16 | U13: 54.13 | X13: NO | AC13: 3.6 | AD13: 9 | AE13: 9 | AF13: 3.6 | AG13: 9 | AH13: 3.6 | AI13: 9 | AL13: G | AP13: SS14
A14: 166.008 | B14: Rejected | C14: 4 | D14: NEVENDON ENERGY STORAGE LIMITED | E14: AFSE01 | F14: DNO connection | G14: Battery | H14: 2023-11-01 | I14: 2023-11-30 | J14: 01.11.23 - 30.11.23 (1 months) | K14: As per FFR framework agreement | L14: 1500 | M14: 2300 | N14: 8 | O14: 1500 | P14: 2300 | Q14: 8 | R14: 1500 | S14: 2300 | T14: 8 | U14: 58.1 | X14: NO | AC14: 3.6 | AD14: 9 | AE14: 9 | AF14: 3.6 | AG14: 9 | AH14: 3.6 | AI14: 9 | AL14: H | AP14: SS14
A15: 166.009 | B15: Accepted | C15: NA | D15: NEVENDON ENERGY STORAGE LIMITED | E15: AFSE01 | F15: DNO connection | G15: Battery | H15: 2023-10-31 | I15: 2023-11-30 | J15: 31.10.23 - 30.11.23 (1 months) | K15: As per FFR framework agreement | L15: 2300 | M15: 2300 | N15: 24 | O15: 2300 | P15: 2300 | Q15: 24 | R15: 2300 | S15: 2300 | T15: 24 | U15: 48.25 | X15: NO | AC15: 3.6 | AD15: 9 | AE15: 9 | AF15: 3.6 | AG15: 9 | AH15: 3.6 | AI15: 9 | AL15: I | AM15: Mutually exclusive with G and H | AP15: SS14
A16: 166.01 | B16: Rejected | C16: 4 | D16: TYNEMOUTH BATTERY STORAGE LIMITED | E16: FFSE01 | F16: DNO connection | G16: Battery | H16: 2023-10-31 | I16: 2023-11-30 | J16: 31.10.23 - 30.11.23 (1 months) | K16: As per FFR framework agreement | L16: 2300 | M16: 1500 | N16: 16 | O16: 2300 | P16: 1500 | Q16: 16 | R16: 2300 | S16: 1500 | T16: 16 | U16: 137.93 | X16: YES | AC16: 9.2 | AD16: 23 | AE16: 23 | AF16: 9.2 | AG16: 23 | AH16: 9.2 | AI16: 23 | AL16: J | AP16: NE27
A17: 166.011 | B17: Rejected | C17: 4 | D17: TYNEMOUTH BATTERY STORAGE LIMITED | E17: FFSE01 | F17: DNO connection | G17: Battery | H17: 2023-11-01 | I17: 2023-11-30 | J17: 01.11.23 - 30.11.23 (1 months) | K17: As per FFR framework agreement | L17: 1500 | M17: 2300 | N17: 8 | O17: 1500 | P17: 2300 | Q17: 8 | R17: 1500 | S17: 2300 | T17: 8 | U17: 148.07 | X17: YES | AC17: 9.2 | AD17: 23 | AE17: 23 | AF17: 9.2 | AG17: 23 | AH17: 9.2 | AI17: 23 | AL17: K | AP17: NE27
A18: 166.012 | B18: Accepted | C18: NA | D18: TYNEMOUTH BATTERY STORAGE LIMITED | E18: FFSE01 | F18: DNO connection | G18: Battery | H18: 2023-10-31 | I18: 2023-11-30 | J18: 31.10.23 - 30.11.23 (1 months) | K18: As per FFR framework agreement | L18: 2300 | M18: 2300 | N18: 24 | O18: 2300 | P18: 2300 | Q18: 24 | R18: 2300 | S18: 2300 | T18: 24 | U18: 124.52 | X18: YES | AC18: 9.2 | AD18: 23 | AE18: 23 | AF18: 9.2 | AG18: 23 | AH18: 9.2 | AI18: 23 | AL18: L | AM18: Mutually exclusive with J and K | AP18: NE27
A19: 166.013 | B19: Rejected | C19: 4 | D19: PORT OF TYNE ENERGY STORAGE LIMITED | E19: POTES-1 | F19: DNO connection | G19: Battery | H19: 2023-10-31 | I19: 2023-11-30 | J19: 31.10.23 - 30.11.23 (1 months) | K19: As per FFR framework agreement | L19: 2300 | M19: 1500 | N19: 16 | O19: 2300 | P19: 1500 | Q19: 16 | R19: 2300 | S19: 1500 | T19: 16 | U19: 197.27 | X19: YES | AC19: 13.2 | AD19: 33 | AE19: 33 | AF19: 13.2 | AG19: 33 | AH19: 13.2 | AI19: 33 | AL19: M | AP19: NE34
A20: 166.014 | B20: Rejected | C20: 4 | D20: PORT OF TYNE ENERGY STORAGE LIMITED | E20: POTES-1 | F20: DNO connection | G20: Battery | H20: 2023-11-01 | I20: 2023-11-30 | J20: 01.11.23 - 30.11.23 (1 months) | K20: As per FFR framework agreement | L20: 1500 | M20: 2300 | N20: 8 | O20: 1500 | P20: 2300 | Q20: 8 | R20: 1500 | S20: 2300 | T20: 8 | U20: 211.82 | X20: YES | AC20: 13.2 | AD20: 33 | AE20: 33 | AF20: 13.2 | AG20: 33 | AH20: 13.2 | AI20: 33 | AL20: N | AP20: NE34
A21: =A20+0.001 -> 166.015 | B21: Accepted | C21: NA | D21: PORT OF TYNE ENERGY STORAGE LIMITED | E21: POTES-1 | F21: DNO connection | G21: Battery | H21: 2023-10-31 | I21: 2023-11-30 | J21: 31.10.23 - 30.11.23 (1 months) | K21: As per FFR framework agreement | L21: 2300 | M21: 2300 | N21: 24 | O21: 2300 | P21: 2300 | Q21: 24 | R21: 2300 | S21: 2300 | T21: 24 | U21: 175.72 | X21: YES | AC21: 13.2 | AD21: 33 | AE21: 33 | AF21: 13.2 | AG21: 33 | AH21: 13.2 | AI21: 33 | AL21: O | AM21: Mutually exclusive with M and N | AP21: NE34
A22: 166.016 | B22: Rejected | C22: 1.2 | D22: ENDERBY STORAGE LIMITED | E22: BFSE01 | F22: DNO connection | G22: Battery | H22: 2023-10-31 | I22: 2023-11-30 | J22: 31.10.23 - 30.11.23 (1 months) | K22: As per FFR framework agreement | L22: 2300 | M22: 1500 | N22: 16 | O22: 2300 | P22: 1500 | Q22: 16 | R22: 2300 | S22: 1500 | T22: 16 | U22: 412.94 | X22: YES | AC22: 18.4 | AD22: 46 | AE22: 46 | AF22: 18.4 | AG22: 46 | AH22: 18.4 | AI22: 46 | AL22: P | AP22: LE19
A23: 166.017 | B23: Rejected | C23: 1.2 | D23: ENDERBY STORAGE LIMITED | E23: BFSE01 | F23: DNO connection | G23: Battery | H23: 2023-11-01 | I23: 2023-11-30 | J23: 01.11.23 - 30.11.23 (1 months) | K23: As per FFR framework agreement | L23: 1500 | M23: 2300 | N23: 8 | O23: 1500 | P23: 2300 | Q23: 8 | R23: 1500 | S23: 2300 | T23: 8 | U23: 432.34 | X23: YES | AC23: 18.4 | AD23: 46 | AE23: 46 | AF23: 18.4 | AG23: 46 | AH23: 18.4 | AI23: 46 | AL23: Q | AP23: LE19
A24: 166.018 | B24: Rejected | C24: 1.2 | D24: ENDERBY STORAGE LIMITED | E24: BFSE01 | F24: DNO connection | G24: Battery | H24: 2023-10-31 | I24: 2023-11-30 | J24: 31.10.23 - 30.11.23 (1 months) | K24: As per FFR framework agreement | L24: 2300 | M24: 2300 | N24: 24 | O24: 2300 | P24: 2300 | Q24: 24 | R24: 2300 | S24: 2300 | T24: 24 | U24: 416.18 | X24: YES | AC24: 18.4 | AD24: 46 | AE24: 46 | AF24: 18.4 | AG24: 46 | AH24: 18.4 | AI24: 46 | AL24: R | AM24: Mutually exclusive with P and Q | AP24: LE19
A25: 166.019 | B25: Rejected | C25: 1.2 | D25: EDF Energy Customers Limited | E25: EDFE-4 | F25: DNO connection | G25: DSF: Storage (for export) | H25: 2023-10-31 | I25: 2023-11-30 | J25: 31.10.23 - 30.11.23 (1 months) | K25: As per FFR framework agreement | L25: 2300 | M25: 2300 | N25: 24 | O25: 2300 | P25: 2300 | Q25: 24 | R25: 2300 | S25: 2300 | T25: 24 | U25: 37.95 | AC25: 2 | AD25: 5 | AE25: 5 | AF25: 2 | AG25: 5 | AH25: 2 | AI25: 5 | AP25: MK45
A26: 166.02 | B26: Rejected | C26: 1.2 | D26: EDF Energy Customers Limited | E26: EDFE-8 | F26: DNO connection | G26: DSF: Storage (for export) | H26: 2023-10-31 | I26: 2023-11-30 | J26: 31.10.23 - 30.11.23 (1 months) | K26: As per FFR framework agreement | L26: 2300 | M26: 2300 | N26: 24 | O26: 2300 | P26: 2300 | Q26: 24 | R26: 2300 | S26: 2300 | T26: 24 | U26: 181.26 | AC26: 7.6 | AD26: 19 | AE26: 19 | AF26: 7.6 | AG26: 19 | AH26: 7.6 | AI26: 19 | AP26: SY8 2
A27: 166.021 | B27: Rejected | C27: 1.2 | D27: EDF Energy Customers Limited | E27: KEMB-1 | F27: TO connection | G27: DSF: Storage (for export) | H27: 2023-10-31 | I27: 2023-11-30 | J27: 31.10.23 - 30.11.23 (1 months) | K27: As per FFR framework agreement | L27: 2300 | M27: 2300 | N27: 24 | O27: 2300 | P27: 2300 | Q27: 24 | R27: 2300 | S27: 2300 | T27: 24 | U27: 356.73 | X27: YES | AC27: 18.8 | AD27: 47 | AE27: 47 | AF27: 18.8 | AG27: 47 | AH27: 18.8 | AI27: 47 | AP27: ME10 2
A28: 166.022 | B28: Rejected | C28: 1.2 | D28: EDF Energy Customers Limited | E28: AG -GEDF01 | F28: DNO connection | G28: DSF: Storage (for export) | H28: 2023-10-31 | I28: 2023-11-30 | J28: 31.10.23 - 30.11.23 (1 months) | K28: As per FFR framework agreement | L28: 2300 | M28: 2300 | N28: 24 | O28: 2300 | P28: 2300 | Q28: 24 | R28: 2300 | S28: 2300 | T28: 24 | U28: 155.23 | X28: YES | AC28: 7.6 | AD28: 19 | AE28: 19 | AF28: 7.6 | AG28: 19 | AH28: 7.6 | AI28: 19 | AP28: SK10
A29: 166.023 | B29: Rejected | C29: 1.2 | D29: EDF Energy Customers Limited | E29: AG -GEDF02 | F29: DNO connection | G29: DSF: Storage (for export) | H29: 2023-10-31 | I29: 2023-11-30 | J29: 31.10.23 - 30.11.23 (1 months) | K29: As per FFR framework agreement | L29: 2300 | M29: 2300 | N29: 24 | O29: 2300 | P29: 2300 | Q29: 24 | R29: 2300 | S29: 2300 | T29: 24 | U29: 155.23 | X29: YES | AC29: 7.6 | AD29: 19 | AE29: 19 | AF29: 7.6 | AG29: 19 | AH29: 7.6 | AI29: 19 | AP29: BL9 5
A30: 166.024 | B30: Rejected | C30: 1.2 | D30: EDF Energy Customers Limited | E30: EDFE-13 | F30: DNO connection | G30: DSF: Storage (for export) | H30: 2023-10-31 | I30: 2023-11-30 | J30: 31.10.23 - 30.11.23 (1 months) | K30: As per FFR framework agreement | L30: 2300 | M30: 2300 | N30: 24 | O30: 2300 | P30: 2300 | Q30: 24 | R30: 2300 | S30: 2300 | T30: 24 | U30: 331.83 | AC30: 10.8 | AD30: 27 | AE30: 27 | AF30: 10.8 | AG30: 27 | AH30: 10.8 | AI30: 27 | AP30: SN5 8
A31: 166.025 | B31: Rejected | C31: 1.2 | D31: EDF Energy Customers Limited | E31: NURSB-1 | F31: TO connection | G31: DSF: Storage (for export) | H31: 2023-10-31 | I31: 2023-11-30 | J31: 31.10.23 - 30.11.23 (1 months) | K31: As per FFR framework agreement | L31: 2300 | M31: 2300 | N31: 24 | O31: 2300 | P31: 2300 | Q31: 24 | R31: 2300 | S31: 2300 | T31: 24 | U31: 227.7 | X31: YES | AC31: 12 | AD31: 30 | AE31: 30 | AF31: 12 | AG31: 30 | AH31: 12 | AI31: 30 | AP31: SO16
A32: 166.026 | B32: Rejected | C32: 1.2 | D32: EDF Energy Customers Limited | E32: EDFE-11 | F32: DNO connection | G32: DSF: Storage (for export) | H32: 2023-10-31 | I32: 2023-11-30 | J32: =IFERROR(TEXT(H32,"DD.MM.YY")&" - "&TEXT(I32,"DD.MM.YY")&" ("&DATEDIF(H32,I32+1,"m")&" months)","Tender End Date is Before Start Date") -> 31.10.23 - 30.11.23 (1 months) | K32: As per FFR framework agreement | L32: 2300 | M32: 2300 | N32: 24 | O32: 2300 | P32: 2300 | Q32: 24 | R32: 2300 | S32: 2300 | T32: 24 | U32: 106.6 | AC32: 4 | AD32: 10 | AE32: 10 | AF32: 4 | AG32: 10 | AH32: 4 | AI32: 10 | AP32: SO22
A33: 166.027 | B33: Rejected | C33: 1.2 | D33: Zenobe Capenhurst Limited | E33: PINFB-1 | F33: TO connection | G33: DSF: Storage (for export) | H33: 2023-10-31 | I33: 2023-11-30 | J33: =IFERROR(TEXT(H33,"DD.MM.YY")&" - "&TEXT(I33,"DD.MM.YY")&" ("&DATEDIF(H33,I33+1,"m")&" months)","Tender End Date is Before Start Date") -> 31.10.23 - 30.11.23 (1 months) | K33: As per FFR framework agreement | L33: 2300 | M33: 2300 | N33: 24 | O33: 2300 | P33: 2300 | Q33: 24 | R33: 2300 | S33: 2300 | T33: 24 | U33: 186.3 | X33: YES | AC33: 9.2 | AD33: 23 | AE33: 23 | AF33: 9.2 | AG33: 23 | AH33: 9.2 | AI33: 23 | AP33: CH66
A34: 166.028 | B34: Rejected | C34: 1.2 | D34: Zenobe Capenhurst Limited | E34: PINFB-2 | F34: TO connection | G34: DSF: Storage (for export) | H34: 2023-10-31 | I34: 2023-11-30 | J34: 31.10.23 - 30.11.23 (1 months) | K34: As per FFR framework agreement | L34: 2300 | M34: 2300 | N34: 24 | O34: 2300 | P34: 2300 | Q34: 24 | R34: 2300 | S34: 2300 | T34: 24 | U34: 186.3 | X34: YES | AC34: 9.2 | AD34: 23 | AE34: 23 | AF34: 9.2 | AG34: 23 | AH34: 9.2 | AI34: 23 | AP34: CH66
A35: 166.029 | B35: Rejected | C35: 1.2 | D35: Zenobe Capenhurst Limited | E35: PINFB-3 | F35: TO connection | G35: DSF: Storage (for export) | H35: 2023-10-31 | I35: 2023-11-30 | J35: 31.10.23 - 30.11.23 (1 months) | K35: As per FFR framework agreement | L35: 2300 | M35: 2300 | N35: 24 | O35: 2300 | P35: 2300 | Q35: 24 | R35: 2300 | S35: 2300 | T35: 24 | U35: 186.3 | X35: YES | AC35: 9.2 | AD35: 23 | AE35: 23 | AF35: 9.2 | AG35: 23 | AH35: 9.2 | AI35: 23 | AP35: CH66
A36: 166.03 | B36: Rejected | C36: 1.2 | D36: Zenobe Capenhurst Limited | E36: PINFB-4 | F36: TO connection | G36: DSF: Storage (for export) | H36: 2023-10-31 | I36: 2023-11-30 | J36: 31.10.23 - 30.11.23 (1 months) | K36: As per FFR framework agreement | L36: 2300 | M36: 2300 | N36: 24 | O36: 2300 | P36: 2300 | Q36: 24 | R36: 2300 | S36: 2300 | T36: 24 | U36: 186.3 | X36: YES | AC36: 9.2 | AD36: 23 | AE36: 23 | AF36: 9.2 | AG36: 23 | AH36: 9.2 | AI36: 23 | AP36: CH66
A37: 166.031 | B37: Rejected | C37: 1.2 | D37: EDF Energy Customers Limited | E37: AG-PEDF01 | F37: DNO connection | G37: DSF: Storage (for export) | H37: 2023-10-31 | I37: 2023-11-30 | J37: 31.10.23 - 30.11.23 (1 months) | K37: As per FFR framework agreement | L37: 2300 | M37: 2300 | N37: 24 | O37: 2300 | P37: 2300 | Q37: 24 | R37: 2300 | S37: 2300 | T37: 24 | U37: 405.14 | X37: YES | AC37: 18.8 | AD37: 47 | AE37: 47 | AF37: 18.8 | AG37: 47 | AH37: 18.8 | AI37: 47 | AP37: DD2 3
A38: 166.032 | B38: Rejected | C38: 1.2 | D38: EDF Energy Customers Limited | E38: WBURB-41 | F38: TO connection | G38: DSF: Storage (for export) | H38: 2023-10-31 | I38: 2023-11-30 | J38: 31.10.23 - 30.11.23 (1 months) | K38: As per FFR framework agreement | L38: 2300 | M38: 2300 | N38: 24 | O38: 2300 | P38: 2300 | Q38: 24 | R38: 2300 | S38: 2300 | T38: 24 | U38: 121.44 | X38: YES | AC38: 6.4 | AD38: 16 | AE38: 16 | AF38: 6.4 | AG38: 16 | AH38: 6.4 | AI38: 16 | AP38: DN22
A39: 166.033 | B39: Rejected | C39: 1.2 | D39: EDF Energy Customers Limited | E39: WBURB-43 | F39: TO connection | G39: DSF: Storage (for export) | H39: 2023-10-31 | I39: 2023-11-30 | J39: 31.10.23 - 30.11.23 (1 months) | K39: As per FFR framework agreement | L39: 2300 | M39: 2300 | N39: 24 | O39: 2300 | P39: 2300 | Q39: 24 | R39: 2300 | S39: 2300 | T39: 24 | U39: 182.16 | X39: YES | AC39: 9.6 | AD39: 24 | AE39: 24 | AF39: 9.6 | AG39: 24 | AH39: 9.6 | AI39: 24 | AP39: DN22
A40: 166.034 | B40: Rejected | C40: 1.2 | D40: Flexitricity Limited | E40: AG-PFLX01 | F40: DNO connection | G40: DSF: Storage (for export) | H40: 2023-10-31 | I40: 2023-11-30 | J40: 31.10.23 - 30.11.23 (1 months) | K40: As per FFR framework agreement | L40: 2300 | M40: 700 | N40: 8 | O40: 2300 | P40: 700 | Q40: 8 | R40: 2300 | S40: 700 | T40: 8 | U40: 294.49 | W40: - | X40: YES | AC40: 19.6 | AD40: 49 | AE40: 49 | AF40: 19.6 | AG40: 49 | AH40: 19.6 | AI40: 49 | AP40: DD2 5
A41: 166.035 | B41: Rejected | C41: 1.2 | D41: Flexitricity Limited | E41: AG-PFLX01 | F41: DNO connection | G41: DSF: Storage (for export) | H41: 2023-11-01 | I41: 2023-11-30 | J41: 01.11.23 - 30.11.23 (1 months) | K41: As per FFR framework agreement | L41: 700 | M41: 1500 | N41: 8 | O41: 700 | P41: 1500 | Q41: 8 | R41: 700 | S41: 1500 | T41: 8 | U41: 290.57 | W41: - | X41: YES | AC41: 19.6 | AD41: 49 | AE41: 49 | AF41: 19.6 | AG41: 49 | AH41: 19.6 | AI41: 49 | AP41: DD2 5
A42: 166.036 | B42: Rejected | C42: 1.2 | D42: Flexitricity Limited | E42: AG-PFLX01 | F42: DNO connection | G42: DSF: Storage (for export) | H42: 2023-11-01 | I42: 2023-11-30 | J42: 01.11.23 - 30.11.23 (1 months) | K42: As per FFR framework agreement | L42: 1500 | M42: 2300 | N42: 8 | O42: 1500 | P42: 2300 | Q42: 8 | R42: 1500 | S42: 2300 | T42: 8 | U42: 472.36 | W42: - | X42: YES | AC42: 19.6 | AD42: 49 | AE42: 49 | AF42: 19.6 | AG42: 49 | AH42: 19.6 | AI42: 49 | AP42: DD2 5
A43: 166.037 | B43: Rejected | C43: 1.2 | D43: Flexitricity Limited | E43: AG-FLX00L | F43: DNO connection | G43: DSF: Storage (for export) | H43: 2023-10-31 | I43: 2023-11-30 | J43: 31.10.23 - 30.11.23 (1 months) | K43: As per FFR framework agreement | L43: 2300 | M43: 700 | N43: 8 | O43: 2300 | P43: 700 | Q43: 8 | R43: 2300 | S43: 700 | T43: 8 | U43: 21.56 | W43: - | X43: YES | AC43: 1.6 | AD43: 4 | AE43: 4 | AF43: 1.6 | AG43: 4 | AH43: 1.6 | AI43: 4 | AP43: EX34 /EX31
A44: 166.038 | B44: Accepted | C44: NA | D44: Flexitricity Limited | E44: AG-FLX00L | F44: DNO connection | G44: DSF: Storage (for export) | H44: 2023-11-01 | I44: 2023-11-30 | J44: 01.11.23 - 30.11.23 (1 months) | K44: As per FFR framework agreement | L44: 700 | M44: 1500 | N44: 8 | O44: 700 | P44: 1500 | Q44: 8 | R44: 700 | S44: 1500 | T44: 8 | U44: 21.32 | W44: - | X44: YES | AC44: 1.6 | AD44: 4 | AE44: 4 | AF44: 1.6 | AG44: 4 | AH44: 1.6 | AI44: 4 | AP44: EX34 /EX31
A45: 166.039 | B45: Rejected | C45: 1.2 | D45: Flexitricity Limited | E45: AG-FLX00L | F45: DNO connection | G45: DSF: Storage (for export) | H45: 2023-11-01 | I45: 2023-11-30 | J45: 01.11.23 - 30.11.23 (1 months) | K45: As per FFR framework agreement | L45: 1500 | M45: 2300 | N45: 8 | O45: 1500 | P45: 2300 | Q45: 8 | R45: 1500 | S45: 2300 | T45: 8 | U45: 110.96 | W45: - | X45: YES | AC45: 1.6 | AD45: 4 | AE45: 4 | AF45: 1.6 | AG45: 4 | AH45: 1.6 | AI45: 4 | AP45: EX34 /EX31
A46: 166.04 | B46: Rejected | C46: 1.2 | D46: Flexitricity Limited | E46: AG-BFLX01 | F46: DNO connection | G46: DSF: Storage (for export) | H46: 2023-10-31 | I46: 2023-11-30 | J46: 31.10.23 - 30.11.23 (1 months) | K46: As per FFR framework agreement | L46: 2300 | M46: 700 | N46: 8 | O46: 2300 | P46: 700 | Q46: 8 | R46: 2300 | S46: 700 | T46: 8 | U46: 39.83 | W46: - | X46: YES | AC46: 2.8 | AD46: 7 | AE46: 7 | AF46: 2.8 | AG46: 7 | AH46: 2.8 | AI46: 7 | AP46: NG32
A47: 166.041 | B47: Accepted | C47: NA | D47: Flexitricity Limited | E47: AG-BFLX01 | F47: DNO connection | G47: DSF: Storage (for export) | H47: 2023-11-01 | I47: 2023-11-30 | J47: 01.11.23 - 30.11.23 (1 months) | K47: As per FFR framework agreement | L47: 700 | M47: 1500 | N47: 8 | O47: 700 | P47: 1500 | Q47: 8 | R47: 700 | S47: 1500 | T47: 8 | U47: 39.62 | W47: - | X47: YES | AC47: 2.8 | AD47: 7 | AE47: 7 | AF47: 2.8 | AG47: 7 | AH47: 2.8 | AI47: 7 | AP47: NG32
A48: 166.042 | B48: Rejected | C48: 1.2 | D48: Flexitricity Limited | E48: AG-BFLX01 | F48: DNO connection | G48: DSF: Storage (for export) | H48: 2023-11-01 | I48: 2023-11-30 | J48: 01.11.23 - 30.11.23 (1 months) | K48: As per FFR framework agreement | L48: 1500 | M48: 2300 | N48: 8 | O48: 1500 | P48: 2300 | Q48: 8 | R48: 1500 | S48: 2300 | T48: 8 | U48: 85.12 | W48: - | X48: YES | AC48: 2.8 | AD48: 7 | AE48: 7 | AF48: 2.8 | AG48: 7 | AH48: 2.8 | AI48: 7 | AP48: NG32
A49: 166.043 | B49: Rejected | C49: 1.2 | D49: Breach Farm Energy Storage Limited | E49: AG-BFLX02 | F49: DNO connection | G49: DSF: Storage (for export) | H49: 2023-10-31 | I49: 2023-11-30 | J49: 31.10.23 - 30.11.23 (1 months) | K49: As per FFR framework agreement | L49: 2300 | M49: 700 | N49: 8 | O49: 2300 | P49: 700 | Q49: 8 | R49: 2300 | S49: 700 | T49: 8 | U49: 57.9 | W49: - | X49: YES | AC49: 4 | AD49: 10 | AE49: 10 | AF49: 4 | AG49: 10 | AH49: 4 | AI49: 10 | AP49: DE12
A50: 166.044 | B50: Rejected | C50: 1.2 | D50: Breach Farm Energy Storage Limited | E50: AG-BFLX02 | F50: DNO connection | G50: DSF: Storage (for export) | H50: 2023-11-01 | I50: 2023-11-30 | J50: 01.11.23 - 30.11.23 (1 months) | K50: As per FFR framework agreement | L50: 700 | M50: 1500 | N50: 8 | O50: 700 | P50: 1500 | Q50: 8 | R50: 700 | S50: 1500 | T50: 8 | U50: 69.1 | W50: - | X50: YES | AC50: 4 | AD50: 10 | AE50: 10 | AF50: 4 | AG50: 10 | AH50: 4 | AI50: 10 | AP50: DE12
A51: 166.045 | B51: Rejected | C51: 1.2 | D51: Breach Farm Energy Storage Limited | E51: AG-BFLX02 | F51: DNO connection | G51: DSF: Storage (for export) | H51: 2023-11-01 | I51: 2023-11-30 | J51: 01.11.23 - 30.11.23 (1 months) | K51: As per FFR framework agreement | L51: 1500 | M51: 2300 | N51: 8 | O51: 1500 | P51: 2300 | Q51: 8 | R51: 1500 | S51: 2300 | T51: 8 | U51: 73 | W51: - | X51: YES | AC51: 4 | AD51: 10 | AE51: 10 | AF51: 4 | AG51: 10 | AH51: 4 | AI51: 10 | AP51: DE12
A52: 166.046 | B52: Rejected | C52: 1.2 | D52: Larport Energy Storage Limited | E52: AG-EFLX01 | F52: DNO connection | G52: DSF: Storage (for export) | H52: 2023-10-31 | I52: 2023-11-30 | J52: 31.10.23 - 30.11.23 (1 months) | K52: As per FFR framework agreement | L52: 2300 | M52: 700 | N52: 8 | O52: 2300 | P52: 700 | Q52: 8 | R52: 2300 | S52: 700 | T52: 8 | U52: 125.59 | W52: - | X52: YES | AC52: 7.6 | AD52: 19 | AE52: 19 | AF52: 7.6 | AG52: 19 | AH52: 7.6 | AI52: 19 | AP52: HR1 4
A53: 166.047 | B53: Rejected | C53: 1.2 | D53: Larport Energy Storage Limited | E53: AG-EFLX01 | F53: DNO connection | G53: DSF: Storage (for export) | H53: 2023-11-01 | I53: 2023-11-30 | J53: 01.11.23 - 30.11.23 (1 months) | K53: As per FFR framework agreement | L53: 700 | M53: 1500 | N53: 8 | O53: 700 | P53: 1500 | Q53: 8 | R53: 700 | S53: 1500 | T53: 8 | U53: 149.72 | W53: - | X53: YES | AC53: 7.6 | AD53: 19 | AE53: 19 | AF53: 7.6 | AG53: 19 | AH53: 7.6 | AI53: 19 | AP53: HR1 4
A54: 166.048 | B54: Rejected | C54: 1.2 | D54: Larport Energy Storage Limited | E54: AG-EFLX01 | F54: DNO connection | G54: DSF: Storage (for export) | H54: 2023-11-01 | I54: 2023-11-30 | J54: 01.11.23 - 30.11.23 (1 months) | K54: As per FFR framework agreement | L54: 1500 | M54: 2300 | N54: 8 | O54: 1500 | P54: 2300 | Q54: 8 | R54: 1500 | S54: 2300 | T54: 8 | U54: 158.27 | W54: - | X54: YES | AC54: 7.6 | AD54: 19 | AE54: 19 | AF54: 7.6 | AG54: 19 | AH54: 7.6 | AI54: 19 | AP54: HR1 4
A55: 166.049 | B55: Rejected | C55: 1.2 | D55: OSSPV001 Limited | E55: ARNKB-2 | F55: DNO connection | G55: DSF: Storage (for export) | H55: 2023-10-31 | I55: 2023-11-30 | J55: 31.10.23 - 30.11.23 (1 months) | K55: As per FFR framework agreement | L55: 2300 | M55: 700 | N55: 8 | O55: 2300 | P55: 700 | Q55: 8 | R55: 2300 | S55: 700 | T55: 8 | U55: 58.1 | W55: - | X55: YES | AC55: 4 | AD55: 10 | AE55: 10 | AF55: 4 | AG55: 10 | AH55: 4 | AI55: 10 | AP55: CM13
A56: 166.05 | B56: Rejected | C56: 1.2 | D56: OSSPV001 Limited | E56: ARNKB-2 | F56: DNO connection | G56: DSF: Storage (for export) | H56: 2023-11-01 | I56: 2023-11-30 | J56: 01.11.23 - 30.11.23 (1 months) | K56: As per FFR framework agreement | L56: 700 | M56: 1500 | N56: 8 | O56: 700 | P56: 1500 | Q56: 8 | R56: 700 | S56: 1500 | T56: 8 | U56: 69.4 | W56: - | X56: YES | AC56: 4 | AD56: 10 | AE56: 10 | AF56: 4 | AG56: 10 | AH56: 4 | AI56: 10 | AP56: CM13
A57: 166.051 | B57: Rejected | C57: 1.2 | D57: OSSPV001 Limited | E57: ARNKB-2 | F57: DNO connection | G57: DSF: Storage (for export) | H57: 2023-11-01 | I57: 2023-11-30 | J57: 01.11.23 - 30.11.23 (1 months) | K57: As per FFR framework agreement | L57: 1500 | M57: 2300 | N57: 8 | O57: 1500 | P57: 2300 | Q57: 8 | R57: 1500 | S57: 2300 | T57: 8 | U57: 73.3 | W57: - | X57: YES | AC57: 4 | AD57: 10 | AE57: 10 | AF57: 4 | AG57: 10 | AH57: 4 | AI57: 10 | AP57: CM13
A58: 166.052 | B58: Rejected | C58: 1.2 | D58: Flexitricity Limited | E58: AG-MFLX02 | F58: DNO connection | G58: DSF: Storage (for export) | H58: 2023-10-31 | I58: 2023-11-30 | J58: 31.10.23 - 30.11.23 (1 months) | K58: As per FFR framework agreement | L58: 2300 | M58: 700 | N58: 8 | O58: 2300 | P58: 700 | Q58: 8 | R58: 2300 | S58: 700 | T58: 8 | U58: 325.36 | W58: - | X58: YES | AC58: 19.96 | AD58: 49 | AE58: 49 | AF58: 19.96 | AG58: 49 | AH58: 19.96 | AI58: 49 | AP58: S66 9
A59: 166.053 | B59: Rejected | C59: 1.2 | D59: Flexitricity Limited | E59: AG-MFLX02 | F59: DNO connection | G59: DSF: Storage (for export) | H59: 2023-11-01 | I59: 2023-11-30 | J59: 01.11.23 - 30.11.23 (1 months) | K59: As per FFR framework agreement | L59: 700 | M59: 1500 | N59: 8 | O59: 700 | P59: 1500 | Q59: 8 | R59: 700 | S59: 1500 | T59: 8 | U59: 290.08 | W59: - | X59: YES | AC59: 19.96 | AD59: 49 | AE59: 49 | AF59: 19.96 | AG59: 49 | AH59: 19.96 | AI59: 49 | AP59: S66 9
A60: 166.054 | B60: Rejected | C60: 1.2 | D60: Flexitricity Limited | E60: AG-MFLX02 | F60: DNO connection | G60: DSF: Storage (for export) | H60: 2023-11-01 | I60: 2023-11-30 | J60: 01.11.23 - 30.11.23 (1 months) | K60: As per FFR framework agreement | L60: 1500 | M60: 2300 | N60: 8 | O60: 1500 | P60: 2300 | Q60: 8 | R60: 1500 | S60: 2300 | T60: 8 | U60: 580.65 | W60: - | X60: YES | AC60: 19.96 | AD60: 49 | AE60: 49 | AF60: 19.96 | AG60: 49 | AH60: 19.96 | AI60: 49 | AP60: S66 9
A61: 166.055 | B61: Rejected | C61: 1.2 | D61: Flexitricity Limited | E61: AG-NFLX01 | F61: DNO connection | G61: DSF: Storage (for export) | H61: 2023-10-31 | I61: 2023-11-30 | J61: 31.10.23 - 30.11.23 (1 months) | K61: As per FFR framework agreement | L61: 2300 | M61: 1500 | N61: 16 | O61: 2300 | P61: 1500 | Q61: 16 | R61: 2300 | S61: 1500 | T61: 16 | U61: 112 | W61: - | X61: YES | AC61: 6.4 | AD61: 16 | AE61: 16 | AF61: 6.4 | AG61: 16 | AH61: 6.4 | AI61: 16 | AP61: KY1 3
A62: 166.056 | B62: Rejected | C62: 1.2 | D62: Flexitricity Limited | E62: AG-NFLX01 | F62: DNO connection | G62: DSF: Storage (for export) | H62: 2023-11-01 | I62: 2023-11-30 | J62: 01.11.23 - 30.11.23 (1 months) | K62: As per FFR framework agreement | O62: 1500 | P62: 2300 | Q62: 8 | R62: 1500 | S62: 2300 | T62: 8 | U62: 96 | W62: - | X62: YES | AC62: 6.4 | AD62: 16 | AE62: 16 | AF62: 6.4 | AG62: 16 | AH62: 6.4 | AI62: 16 | AP62: KY1 3
A63: 166.057 | B63: Accepted | C63: NA | D63: OSSPV001 Limited | E63: UF_FLX02 | F63: DNO connection | G63: DSF: Storage (onsite) | H63: 2023-10-31 | I63: 2023-11-30 | J63: 31.10.23 - 30.11.23 (1 months) | K63: As per FFR framework agreement | L63: 2300 | M63: 700 | N63: =IF(L63>M63, (2400-L63+M63)/100, IF(AND(L63="",M63="",L63=M63), "", IF(L63=M63,24,(M63-L63)/100))) -> 8 | O63: 2300 | P63: 700 | Q63: 8 | R63: 2300 | S63: 700 | T63: 8 | U63: 42.32 | W63: - | AC63: 3.2 | AD63: 8 | AE63: 8 | AF63: 3.2 | AG63: 8 | AH63: 3.2 | AI63: 8 | AP63: RM18
A64: 166.058 | B64: Rejected | C64: 1.2 | D64: OSSPV001 Limited | E64: UF_FLX02 | F64: DNO connection | G64: DSF: Storage (onsite) | H64: 2023-11-01 | I64: 2023-11-30 | J64: 01.11.23 - 30.11.23 (1 months) | K64: As per FFR framework agreement | L64: 700 | M64: 1500 | N64: 8 | O64: 700 | P64: 1500 | Q64: 8 | R64: 700 | S64: 1500 | T64: 8 | U64: 50.48 | W64: - | AC64: 3.2 | AD64: 8 | AE64: 8 | AF64: 3.2 | AG64: 8 | AH64: 3.2 | AI64: 8 | AP64: RM18
A65: 166.059 | B65: Accepted | C65: NA | D65: OSSPV001 Limited | E65: UF_FLX02 | F65: DNO connection | G65: DSF: Storage (onsite) | H65: 2023-11-01 | I65: 2023-11-30 | J65: 01.11.23 - 30.11.23 (1 months) | K65: As per FFR framework agreement | L65: 1500 | M65: 2300 | N65: 8 | O65: 1500 | P65: 2300 | Q65: 8 | R65: 1500 | S65: 2300 | T65: 8 | U65: 53.28 | W65: - | AC65: 3.2 | AD65: 8 | AE65: 8 | AF65: 3.2 | AG65: 8 | AH65: 3.2 | AI65: 8 | AP65: RM18
A66: 166.06 | B66: Accepted | C66: NA | D66: GridBeyond Limited | E66: GBND-2 | F66: DNO connection | G66: DSF: Load response | H66: 2023-10-31 | I66: 2023-11-30 | J66: 31.10.23 - 30.11.23 (1 months) | K66: As per FFR framework agreement | L66: 2300 | M66: 2300 | N66: 24 | O66: 2300 | P66: 2300 | Q66: 24 | R66: 2300 | S66: 2300 | T66: 24 | U66: 47.85 | AC66: 4.4 | AD66: 11 | AE66: 11 | AF66: 4.4 | AG66: 11 | AH66: 4.4 | AI66: 11
A67: 166.061 | B67: Accepted | C67: NA | D67: GridBeyond Limited | E67: GBND-1 | F67: DNO connection | G67: DSF: Load response | H67: 2023-10-31 | I67: 2023-11-30 | J67: =IFERROR(TEXT(H67,"DD.MM.YY")&" - "&TEXT(I67,"DD.MM.YY")&" ("&DATEDIF(H67,I67+1,"m")&" months)","Tender End Date is Before Start Date") -> 31.10.23 - 30.11.23 (1 months) | K67: As per FFR framework agreement | L67: 2300 | M67: 2300 | N67: 24 | O67: 2300 | P67: 2300 | Q67: 24 | R67: 2300 | S67: 2300 | T67: 24 | U67: 34.65 | AC67: 2.8 | AD67: 7 | AE67: 7 | AF67: 2.8 | AG67: 7 | AH67: 2.8 | AI67: 7
A68: 166.062 | B68: Rejected | C68: 1.2 | D68: Habitat Energy Limited | E68: COWB-1 | F68: TO connection | G68: Battery | H68: 2023-10-31 | I68: 2023-11-30 | J68: 31.10.23 - 30.11.23 (1 months) | K68: As per FFR framework agreement | L68: 2300 | M68: 2300 | N68: 24 | O68: 2300 | P68: 2300 | Q68: 24 | R68: 2300 | S68: 2300 | T68: 24 | U68: 237.6 | V68: - | W68: - | X68: YES | AC68: 13.2 | AD68: 33 | AE68: 33 | AF68: 13.2 | AG68: 33 | AH68: 13.2 | AI68: 33 | AP68: OX4 7BZ
A69: 166.063 | B69: Rejected | C69: 1.2 | D69: Habitat Energy Limited | E69: HAB8-FFR | F69: DNO connection | G69: DSF: Storage (for export) | H69: 2023-10-31 | I69: 2023-11-30 | J69: 31.10.23 - 30.11.23 (1 months) | K69: As per FFR framework agreement | L69: 2300 | M69: 2300 | N69: 24 | O69: 2300 | P69: 2300 | Q69: 24 | R69: 2300 | S69: 2300 | T69: 24 | U69: 90.1 | V69: - | W69: - | X69: NO | AC69: 4 | AD69: 10 | AE69: 10 | AF69: 4 | AG69: 10 | AH69: 4 | AI69: 10 | AP69: LN1 2RD
A70: 166.064 | B70: Rejected | C70: 1.2 | D70: Levelise Limited | E70: SOC2-FFR | F70: DNO connection | G70: DSF: Storage (onsite) | H70: 2023-10-31 | I70: 2023-11-30 | J70: =IFERROR(TEXT(H70,"DD.MM.YY")&" - "&TEXT(I70,"DD.MM.YY")&" ("&DATEDIF(H70,I70+1,"m")&" months)","Tender End Date is Before Start Date") -> 31.10.23 - 30.11.23 (1 months) | K70: As per FFR framework agreement | L70: 2300 | M70: 700 | N70: 8 | O70: 2300 | P70: 700 | Q70: 8 | R70: 2300 | S70: 700 | T70: 8 | U70: 7.47 | AC70: 0.4 | AD70: 1 | AE70: 1 | AF70: 0.4 | AG70: 1 | AH70: 0.4 | AI70: 1 | AL70: A | AQ70: H for only 30min
A71: 166.065 | B71: Rejected | C71: 1.2 | D71: Levelise Limited | E71: SOC2-FFR | F71: DNO connection | G71: DSF: Storage (onsite) | H71: 2023-11-01 | I71: 2023-11-30 | J71: 01.11.23 - 30.11.23 (1 months) | K71: As per FFR framework agreement | L71: 700 | M71: 2300 | N71: 16 | O71: 700 | P71: 2300 | Q71: =IF(O71>P71, (2400-O71+P71)/100, IF(AND(O71="",P71="",O71=P71), "", IF(O71=P71,24,(P71-O71)/100))) -> 16 | R71: 700 | S71: 2300 | T71: =IF(R71>S71, (2400-R71+S71)/100, IF(AND(R71="",S71="",R71=S71), "", IF(R71=S71,24,(S71-R71)/100))) -> 16 | U71: 11.98 | AC71: 0.4 | AD71: 1 | AE71: 1 | AF71: 0.4 | AG71: 1 | AH71: 0.4 | AI71: 1 | AL71: B | AQ71: H for only 30min
A72: =A71+0.001 -> 166.066 | B72: Rejected | C72: 1.2 | D72: Levelise Limited | E72: SOC2-FFR | F72: DNO connection | G72: DSF: Storage (onsite) | H72: 2023-10-31 | I72: 2023-11-30 | J72: 31.10.23 - 30.11.23 (1 months) | K72: As per FFR framework agreement | L72: 2300 | M72: 2300 | N72: 24 | O72: 2300 | P72: 2300 | Q72: 24 | R72: 2300 | S72: 2300 | T72: 24 | U72: 10.47 | AC72: 0.4 | AD72: 1 | AE72: 1 | AF72: 0.4 | AG72: 1 | AH72: 0.4 | AI72: 1 | AL72: C | AM72: Cannot be accepted with A or B | AQ72: H for only 30min
A73: 166.067 | B73: Rejected | C73: 1.2 | D73: Levelise Limited | E73: SOC3-FFR | F73: DNO connection | G73: DSF: Storage (onsite) | H73: 2023-10-31 | I73: 2023-11-30 | J73: 31.10.23 - 30.11.23 (1 months) | K73: As per FFR framework agreement | L73: 2300 | M73: 700 | N73: 8 | O73: 2300 | P73: 700 | Q73: 8 | R73: 2300 | S73: 700 | T73: 8 | U73: 7.79 | AC73: 0.4 | AD73: 1 | AE73: 1 | AF73: 0.4 | AG73: 1 | AH73: 0.4 | AI73: 1 | AL73: A | AQ73: H for only 30min
A74: 166.068 | B74: Rejected | C74: 1.2 | D74: Levelise Limited | E74: SOC3-FFR | F74: DNO connection | G74: DSF: Storage (onsite) | H74: 2023-11-01 | I74: 2023-11-30 | J74: 01.11.23 - 30.11.23 (1 months) | K74: As per FFR framework agreement | L74: 700 | M74: 2300 | N74: 16 | O74: 700 | P74: 2300 | Q74: 16 | R74: 700 | S74: 2300 | T74: 16 | U74: 12 | AC74: 0.4 | AD74: 1 | AE74: 1 | AF74: 0.4 | AG74: 1 | AH74: 0.4 | AI74: 1 | AL74: B | AQ74: H for only 30min
A75: 166.069 | B75: Rejected | C75: 1.2 | D75: Levelise Limited | E75: SOC3-FFR | F75: DNO connection | G75: DSF: Storage (onsite) | H75: 2023-10-31 | I75: 2023-11-30 | J75: 31.10.23 - 30.11.23 (1 months) | K75: As per FFR framework agreement | L75: 2300 | M75: 2300 | N75: 24 | O75: 2300 | P75: 2300 | Q75: 24 | R75: 2300 | S75: 2300 | T75: 24 | U75: 10.59 | AC75: 0.4 | AD75: 1 | AE75: 1 | AF75: 0.4 | AG75: 1 | AH75: 0.4 | AI75: 1 | AL75: C | AM75: Cannot be accepted with A or B | AQ75: H for only 30min
A76: 166.07 | B76: Rejected | C76: 1.2 | D76: Levelise Limited | E76: SOC4-FFR | F76: DNO connection | G76: DSF: Storage (onsite) | H76: 2023-10-31 | I76: 2023-11-30 | J76: 31.10.23 - 30.11.23 (1 months) | K76: As per FFR framework agreement | L76: 2300 | M76: 700 | N76: 8 | O76: 2300 | P76: 700 | Q76: 8 | R76: 2300 | S76: 700 | T76: 8 | U76: 8.12 | AC76: 0.4 | AD76: 1 | AE76: 1 | AF76: 0.4 | AG76: 1 | AH76: 0.4 | AI76: 1 | AL76: A | AQ76: H for only 30min
A77: 166.071 | B77: Rejected | C77: 1.2 | D77: Levelise Limited | E77: SOC4-FFR | F77: DNO connection | G77: DSF: Storage (onsite) | H77: 2023-11-01 | I77: 2023-11-30 | J77: 01.11.23 - 30.11.23 (1 months) | K77: As per FFR framework agreement | L77: 700 | M77: 2300 | N77: 16 | O77: 700 | P77: 2300 | Q77: 16 | R77: 700 | S77: 2300 | T77: 16 | U77: 12.07 | AC77: 0.4 | AD77: 1 | AE77: 1 | AF77: 0.4 | AG77: 1 | AH77: 0.4 | AI77: 1 | AL77: B | AQ77: H for only 30min
A78: 166.072 | B78: Rejected | C78: 1.2 | D78: Levelise Limited | E78: SOC4-FFR | F78: DNO connection | G78: DSF: Storage (onsite) | H78: 2023-10-31 | I78: 2023-11-30 | J78: 31.10.23 - 30.11.23 (1 months) | K78: As per FFR framework agreement | L78: 2300 | M78: 2300 | N78: 24 | O78: 2300 | P78: 2300 | Q78: 24 | R78: 2300 | S78: 2300 | T78: 24 | U78: 10.75 | AC78: 0.4 | AD78: 1 | AE78: 1 | AF78: 0.4 | AG78: 1 | AH78: 0.4 | AI78: 1 | AL78: C | AM78: Cannot be accepted with A or B | AQ78: H for only 30min
A79: 166.073 | B79: Rejected | C79: 1.2 | D79: Levelise Limited | E79: SOC5-FFR | F79: DNO connection | G79: DSF: Storage (onsite) | H79: 2023-10-31 | I79: 2023-11-30 | J79: 31.10.23 - 30.11.23 (1 months) | K79: As per FFR framework agreement | L79: 2300 | M79: 700 | N79: 8 | O79: 2300 | P79: 700 | Q79: 8 | R79: 2300 | S79: 700 | T79: 8 | U79: 8.46 | AC79: 0.4 | AD79: 1 | AE79: 1 | AF79: 0.4 | AG79: 1 | AH79: 0.4 | AI79: 1 | AL79: A | AQ79: H for only 30min
A80: 166.074 | B80: Rejected | C80: 1.2 | D80: Levelise Limited | E80: SOC5-FFR | F80: DNO connection | G80: DSF: Storage (onsite) | H80: 2023-11-01 | I80: 2023-11-30 | J80: 01.11.23 - 30.11.23 (1 months) | K80: As per FFR framework agreement | L80: 700 | M80: 2300 | N80: 16 | O80: 700 | P80: 2300 | Q80: 16 | R80: 700 | S80: 2300 | T80: 16 | U80: 12.14 | AC80: 0.4 | AD80: 1 | AE80: 1 | AF80: 0.4 | AG80: 1 | AH80: 0.4 | AI80: 1 | AL80: B | AQ80: H for only 30min
A81: 166.075 | B81: Rejected | C81: 1.2 | D81: Levelise Limited | E81: SOC5-FFR | F81: DNO connection | G81: DSF: Storage (onsite) | H81: 2023-10-31 | I81: 2023-11-30 | J81: 31.10.23 - 30.11.23 (1 months) | K81: As per FFR framework agreement | L81: 2300 | M81: 2300 | N81: 24 | O81: 2300 | P81: 2300 | Q81: 24 | R81: 2300 | S81: 2300 | T81: 24 | U81: 10.91 | AC81: 0.4 | AD81: 1 | AE81: 1 | AF81: 0.4 | AG81: 1 | AH81: 0.4 | AI81: 1 | AL81: C | AM81: Cannot be accepted with A or B | AQ81: H for only 30min
A82: 166.076 | B82: Rejected | C82: 1.2 | D82: Levelise Limited | E82: SOC6-FFR | F82: DNO connection | G82: DSF: Storage (onsite) | H82: 2023-10-31 | I82: 2023-11-30 | J82: 31.10.23 - 30.11.23 (1 months) | K82: As per FFR framework agreement | L82: 2300 | M82: 700 | N82: 8 | O82: 2300 | P82: 700 | Q82: 8 | R82: 2300 | S82: 700 | T82: 8 | U82: 8.82 | AC82: 0.4 | AD82: 1 | AE82: 1 | AF82: 0.4 | AG82: 1 | AH82: 0.4 | AI82: 1 | AL82: A | AQ82: H for only 30min
A83: 166.077 | B83: Rejected | C83: 1.2 | D83: Levelise Limited | E83: SOC6-FFR | F83: DNO connection | G83: DSF: Storage (onsite) | H83: 2023-11-01 | I83: 2023-11-30 | J83: 01.11.23 - 30.11.23 (1 months) | K83: As per FFR framework agreement | L83: 700 | M83: 2300 | N83: 16 | O83: 700 | P83: 2300 | Q83: 16 | R83: 700 | S83: 2300 | T83: 16 | U83: 12.3 | AC83: 0.4 | AD83: 1 | AE83: 1 | AF83: 0.4 | AG83: 1 | AH83: 0.4 | AI83: 1 | AL83: B | AQ83: H for only 30min
A84: 166.078 | B84: Rejected | C84: 1.2 | D84: Levelise Limited | E84: SOC6-FFR | F84: DNO connection | G84: DSF: Storage (onsite) | H84: 2023-10-31 | I84: 2023-11-30 | J84: 31.10.23 - 30.11.23 (1 months) | K84: As per FFR framework agreement | L84: 2300 | M84: 2300 | N84: 24 | O84: 2300 | P84: 2300 | Q84: 24 | R84: 2300 | S84: 2300 | T84: 24 | U84: 11.14 | AC84: 0.4 | AD84: 1 | AE84: 1 | AF84: 0.4 | AG84: 1 | AH84: 0.4 | AI84: 1 | AL84: C | AM84: Cannot be accepted with A or B | AQ84: H for only 30min
A85: 166.079 | B85: Rejected | C85: 1.2 | D85: Levelise Limited | E85: SOC7-FFR | F85: DNO connection | G85: DSF: Storage (onsite) | H85: 2023-10-31 | I85: 2023-11-30 | J85: 31.10.23 - 30.11.23 (1 months) | K85: As per FFR framework agreement | L85: 2300 | M85: 700 | N85: 8 | O85: 2300 | P85: 700 | Q85: 8 | R85: 2300 | S85: 700 | T85: 8 | U85: 9.19 | AC85: 0.4 | AD85: 1 | AE85: 1 | AF85: 0.4 | AG85: 1 | AH85: 0.4 | AI85: 1 | AL85: A | AQ85: H for only 30min
A86: 166.08 | B86: Rejected | C86: 1.2 | D86: Levelise Limited | E86: SOC7-FFR | F86: DNO connection | G86: DSF: Storage (onsite) | H86: 2023-11-01 | I86: 2023-11-30 | J86: 01.11.23 - 30.11.23 (1 months) | K86: As per FFR framework agreement | L86: 700 | M86: 2300 | N86: 16 | O86: 700 | P86: 2300 | Q86: 16 | R86: 700 | S86: 2300 | T86: 16 | U86: 12.5 | AC86: 0.4 | AD86: 1 | AE86: 1 | AF86: 0.4 | AG86: 1 | AH86: 0.4 | AI86: 1 | AL86: B | AQ86: H for only 30min
A87: 166.081 | B87: Rejected | C87: 1.2 | D87: Levelise Limited | E87: SOC7-FFR | F87: DNO connection | G87: DSF: Storage (onsite) | H87: 2023-10-31 | I87: 2023-11-30 | J87: 31.10.23 - 30.11.23 (1 months) | K87: As per FFR framework agreement | L87: 2300 | M87: 2300 | N87: 24 | O87: 2300 | P87: 2300 | Q87: 24 | R87: 2300 | S87: 2300 | T87: 24 | U87: 11.39 | AC87: 0.4 | AD87: 1 | AE87: 1 | AF87: 0.4 | AG87: 1 | AH87: 0.4 | AI87: 1 | AL87: C | AM87: Cannot be accepted with A or B | AQ87: H for only 30min
A88: 166.082 | B88: Rejected | C88: 1.2 | D88: Levelise Limited | E88: SOC9-FFR | F88: DNO connection | G88: DSF: Storage (onsite) | H88: 2023-10-31 | I88: 2023-11-30 | J88: 31.10.23 - 30.11.23 (1 months) | K88: As per FFR framework agreement | L88: 2300 | M88: 700 | N88: 8 | O88: 2300 | P88: 700 | Q88: 8 | R88: 2300 | S88: 700 | T88: 8 | U88: 9.58 | AC88: 0.4 | AD88: 1 | AE88: 1 | AF88: 0.4 | AG88: 1 | AH88: 0.4 | AI88: 1 | AL88: A | AQ88: H for only 30min
A89: 166.083 | B89: Rejected | C89: 1.2 | D89: Levelise Limited | E89: SOC9-FFR | F89: DNO connection | G89: DSF: Storage (onsite) | H89: 2023-11-01 | I89: 2023-11-30 | J89: 01.11.23 - 30.11.23 (1 months) | K89: As per FFR framework agreement | L89: 700 | M89: 2300 | N89: 16 | O89: 700 | P89: 2300 | Q89: 16 | R89: 700 | S89: 2300 | T89: 16 | U89: 12.76 | AC89: 0.4 | AD89: 1 | AE89: 1 | AF89: 0.4 | AG89: 1 | AH89: 0.4 | AI89: 1 | AL89: B | AQ89: H for only 30min
A90: 166.084 | B90: Rejected | C90: 1.2 | D90: Levelise Limited | E90: SOC9-FFR | F90: DNO connection | G90: DSF: Storage (onsite) | H90: 2023-10-31 | I90: 2023-11-30 | J90: 31.10.23 - 30.11.23 (1 months) | K90: As per FFR framework agreement | L90: 2300 | M90: 2300 | N90: 24 | O90: 2300 | P90: 2300 | Q90: 24 | R90: 2300 | S90: 2300 | T90: 24 | U90: 11.7 | AC90: 0.4 | AD90: 1 | AE90: 1 | AF90: 0.4 | AG90: 1 | AH90: 0.4 | AI90: 1 | AL90: C | AM90: Cannot be accepted with A or B | AQ90: H for only 30min
A91: 166.085 | B91: Rejected | C91: 1.2 | D91: Levelise Limited | E91: SOC10-FFR | F91: DNO connection | G91: DSF: Storage (onsite) | H91: 2023-10-31 | I91: 2023-11-30 | J91: 31.10.23 - 30.11.23 (1 months) | K91: As per FFR framework agreement | L91: 2300 | M91: 700 | N91: 8 | O91: 2300 | P91: 700 | Q91: 8 | R91: 2300 | S91: 700 | T91: 8 | U91: 9.98 | AC91: 0.4 | AD91: 1 | AE91: 1 | AF91: 0.4 | AG91: 1 | AH91: 0.4 | AI91: 1 | AL91: A | AQ91: H for only 30min
A92: 166.086 | B92: Rejected | C92: 1.2 | D92: Levelise Limited | E92: SOC10-FFR | F92: DNO connection | G92: DSF: Storage (onsite) | H92: 2023-11-01 | I92: 2023-11-30 | J92: 01.11.23 - 30.11.23 (1 months) | K92: As per FFR framework agreement | L92: 700 | M92: 2300 | N92: 16 | O92: 700 | P92: 2300 | Q92: 16 | R92: 700 | S92: 2300 | T92: 16 | U92: 12.95 | AC92: 0.4 | AD92: 1 | AE92: 1 | AF92: 0.4 | AG92: 1 | AH92: 0.4 | AI92: 1 | AL92: B | AQ92: H for only 30min
A93: 166.087 | B93: Rejected | C93: 1.2 | D93: Levelise Limited | E93: SOC10-FFR | F93: DNO connection | G93: DSF: Storage (onsite) | H93: 2023-10-31 | I93: 2023-11-30 | J93: 31.10.23 - 30.11.23 (1 months) | K93: As per FFR framework agreement | L93: 2300 | M93: 2300 | N93: 24 | O93: 2300 | P93: 2300 | Q93: 24 | R93: 2300 | S93: 2300 | T93: 24 | U93: 11.96 | AC93: 0.4 | AD93: 1 | AE93: 1 | AF93: 0.4 | AG93: 1 | AH93: 0.4 | AI93: 1 | AL93: C | AM93: Cannot be accepted with A or B | AQ93: H for only 30min
A94: 166.088 | B94: Rejected | C94: 1.2 | D94: Statkraft Markets GmbH | E94: AG-ASTK05 | F94: DNO connection | G94: DSF: Storage (for export) | H94: 2023-10-31 | I94: 2023-11-30 | J94: 31.10.23 - 30.11.23 (1 months) | K94: As per FFR framework agreement | L94: 2300 | M94: 700 | N94: 8 | O94: 2300 | P94: 700 | Q94: 8 | R94: 2300 | S94: 700 | T94: 8 | U94: 242 | X94: NO | AC94: 17.6 | AD94: 44 | AE94: 44 | AF94: 17.6 | AG94: 44 | AH94: 17.6 | AI94: 44 | AL94: A | AM94: Mutually exclusive with tender ref 166.003 (row C) | AP94: SG9 0JB | AQ94: Mutually exclusive with tender ref 166.003 (row C)
A95: 166.089 | B95: Rejected | C95: 1.2 | D95: Statkraft Markets GmbH | E95: AG-ASTK05 | F95: DNO connection | G95: DSF: Storage (for export) | H95: 2023-11-01 | I95: 2023-11-30 | J95: 01.11.23 - 30.11.23 (1 months) | K95: As per FFR framework agreement | L95: 700 | M95: 1500 | N95: 8 | O95: 700 | P95: 1500 | Q95: 8 | R95: 700 | S95: 1500 | T95: 8 | U95: 260 | X95: NO | AC95: 16 | AD95: 40 | AE95: 40 | AF95: 16 | AG95: 40 | AH95: 16 | AI95: 40 | AL95: B | AM95: Mutually exclusive with tender ref 166.003 (row C) | AP95: SG9 0JB | AQ95: Mutually exclusive with tender ref 166.003 (row C)
A96: 166.09 | B96: Rejected | C96: 1.2 | D96: Statkraft Markets GmbH | E96: AG-ASTK05 | F96: DNO connection | G96: DSF: Storage (for export) | H96: 2023-10-31 | I96: 2023-11-30 | J96: 31.10.23 - 30.11.23 (1 months) | K96: As per FFR framework agreement | L96: 2300 | M96: 2300 | N96: 24 | O96: 2300 | P96: 2300 | Q96: 24 | R96: 2300 | S96: 2300 | T96: 24 | U96: 420 | X96: NO | AC96: 16 | AD96: 40 | AE96: 40 | AF96: 16 | AG96: 40 | AH96: 16 | AI96: 40 | AL96: C | AM96: Mutually exclusive with tender ref 166.001 (row A) and tender ref 166.002 (row B) | AP96: SG9 0JB | AQ96: Mutually exclusive with tender ref 166.001 (row A) and tender ref 166.002 (row B)
A97: 166.091 | B97: Rejected | C97: 1.2 | D97: Statkraft Markets GmbH | E97: AG-JSTK02 | F97: DNO connection | G97: DSF: Storage (for export) | H97: 2023-10-31 | I97: 2023-11-30 | J97: 31.10.23 - 30.11.23 (1 months) | K97: As per FFR framework agreement | L97: 2300 | M97: 700 | N97: 8 | O97: 2300 | P97: 700 | Q97: 8 | R97: 2300 | S97: 700 | T97: 8 | U97: 38.95 | X97: NO | AC97: 2 | AD97: 5 | AE97: 5 | AF97: 2 | AG97: 5 | AH97: 2 | AI97: 5 | AP97: RH4 3LY
A98: 166.092 | B98: Rejected | C98: 1.2 | D98: Statkraft Markets GmbH | E98: AG-JSTK02 | F98: DNO connection | G98: DSF: Storage (for export) | H98: 2023-11-01 | I98: 2023-11-30 | J98: 01.11.23 - 30.11.23 (1 months) | K98: As per FFR framework agreement | L98: 700 | M98: 1500 | N98: 8 | O98: 700 | P98: 1500 | Q98: 8 | R98: 700 | S98: 1500 | T98: 8 | U98: 59.55 | X98: NO | AC98: 2 | AD98: 5 | AE98: 5 | AF98: 2 | AG98: 5 | AH98: 2 | AI98: 5 | AP98: RH4 3LY
A99: 166.093 | B99: Rejected | C99: 1.2 | D99: Statkraft Markets GmbH | E99: AG-JSTK02 | F99: DNO connection | G99: DSF: Storage (for export) | H99: 2023-11-01 | I99: 2023-11-30 | J99: 01.11.23 - 30.11.23 (1 months) | K99: As per FFR framework agreement | L99: 1500 | M99: 2300 | N99: 8 | O99: 1500 | P99: 2300 | Q99: 8 | R99: 1500 | S99: 2300 | T99: 8 | U99: 86.6 | X99: NO | AC99: 2 | AD99: 5 | AE99: 5 | AF99: 2 | AG99: 5 | AH99: 2 | AI99: 5 | AP99: RH4 3LY
A100: =A99+0.001 -> 166.094 | B100: Rejected | C100: 1.2 | D100: Tesla Motors Limited | E100: E_BHOLB-1 | F100: DNO connection | G100: Battery | H100: 2023-10-31 | I100: 2023-11-30 | J100: 31.10.23 - 30.11.23 (1 months) | K100: As per FFR framework agreement | L100: 2300 | M100: 700 | N100: 8 | O100: 2300 | P100: 700 | Q100: 8 | R100: 2300 | S100: 700 | T100: 8 | U100: 40.88237655 | X100: Yes | AC100: 2.4 | AD100: 6 | AE100: 6 | AF100: 2.4 | AG100: 6 | AH100: 2.4 | AI100: 6 | AL100: A
A101: 166.095 | B101: Rejected | C101: 1.2 | D101: Tesla Motors Limited | E101: E_BHOLB-1 | F101: DNO connection | G101: Battery | H101: 2023-11-01 | I101: 2023-11-30 | J101: 01.11.23 - 30.11.23 (1 months) | K101: As per FFR framework agreement | L101: 700 | M101: 1500 | N101: 8 | O101: 700 | P101: 1500 | Q101: 8 | R101: 700 | S101: 1500 | T101: 8 | U101: 37.58685215 | X101: Yes | AC101: 2.4 | AD101: 6 | AE101: 6 | AF101: 2.4 | AG101: 6 | AH101: 2.4 | AI101: 6 | AL101: B
A102: 166.096 | B102: Rejected | C102: 1.2 | D102: Tesla Motors Limited | E102: E_BHOLB-1 | F102: DNO connection | G102: Battery | H102: 2023-11-01 | I102: 2023-11-30 | J102: 01.11.23 - 30.11.23 (1 months) | K102: As per FFR framework agreement | L102: 1500 | M102: 2300 | N102: 8 | O102: 1500 | P102: 2300 | Q102: 8 | R102: 1500 | S102: 2300 | T102: 8 | U102: 148.9765422 | X102: Yes | AC102: 2.4 | AD102: 6 | AE102: 6 | AF102: 2.4 | AG102: 6 | AH102: 2.4 | AI102: 6 | AL102: C
A103: =A102+0.001 -> 166.097 | B103: Rejected | C103: 1.2 | D103: Tesla Motors Limited | E103: E_CONTB-1 | F103: DNO connection | G103: Battery | H103: 2023-10-31 | I103: 2023-11-30 | J103: 31.10.23 - 30.11.23 (1 months) | K103: As per FFR framework agreement | L103: 2300 | M103: 700 | N103: 8 | O103: 2300 | P103: 700 | Q103: 8 | R103: 2300 | S103: 700 | T103: 8 | U103: 268.2178916 | X103: Yes | AC103: 12.8 | AD103: 32 | AE103: 32 | AF103: 12.8 | AG103: 32 | AH103: 12.8 | AI103: 32 | AL103: D | AM103: D is mutually exclusive to F
A104: 166.098 | B104: Rejected | C104: 1.2 | D104: Tesla Motors Limited | E104: E_CONTB-1 | F104: DNO connection | G104: Battery | H104: 2023-11-01 | I104: 2023-11-30 | J104: 01.11.23 - 30.11.23 (1 months) | K104: As per FFR framework agreement | L104: 700 | M104: 1500 | N104: 8 | O104: 700 | P104: 1500 | Q104: 8 | R104: 700 | S104: 1500 | T104: 8 | U104: 257.625334 | X104: Yes | AC104: 12.8 | AD104: 32 | AE104: 32 | AF104: 12.8 | AG104: 32 | AH104: 12.8 | AI104: 32 | AL104: E | AM104: E is mutually exclusive to F
A105: 166.099 | B105: Rejected | C105: 1.2 | D105: Tesla Motors Limited | E105: E_CONTB-1 | F105: DNO connection | G105: Battery | H105: 2023-10-31 | I105: 2023-11-30 | J105: 31.10.23 - 30.11.23 (1 months) | K105: As per FFR framework agreement | L105: 2300 | M105: 2300 | N105: 24 | O105: 2300 | P105: 2300 | Q105: 24 | R105: 2300 | S105: 2300 | T105: 24 | U105: 370.1123971 | X105: Yes | AC105: 12.8 | AD105: 32 | AE105: 32 | AF105: 12.8 | AG105: 32 | AH105: 12.8 | AI105: 32 | AL105: F
A106: 166.1 | B106: Rejected | C106: 1.2 | D106: Tesla Motors Limited | E106: E_HAWKB-1 | F106: DNO connection | G106: Battery | H106: 2023-10-31 | I106: 2023-11-30 | J106: 31.10.23 - 30.11.23 (1 months) | K106: As per FFR framework agreement | L106: 2300 | M106: 700 | N106: 8 | O106: 2300 | P106: 700 | Q106: 8 | R106: 2300 | S106: 700 | T106: 8 | U106: 129.9410871 | X106: Yes | AC106: 7.2 | AD106: 18 | AE106: 18 | AF106: 7.2 | AG106: 18 | AH106: 7.2 | AI106: 18 | AL106: G
A107: 166.101 | B107: Rejected | C107: 1.2 | D107: Tesla Motors Limited | E107: E_HAWKB-1 | F107: DNO connection | G107: Battery | H107: 2023-11-01 | I107: 2023-11-30 | J107: 01.11.23 - 30.11.23 (1 months) | K107: As per FFR framework agreement | L107: 700 | M107: 1500 | N107: 8 | O107: 700 | P107: 1500 | Q107: 8 | R107: 700 | S107: 1500 | T107: 8 | U107: 123.8452292 | X107: Yes | AC107: 7.2 | AD107: 18 | AE107: 18 | AF107: 7.2 | AG107: 18 | AH107: 7.2 | AI107: 18 | AL107: H
A108: 166.102 | B108: Rejected | C108: 1.2 | D108: Tesla Motors Limited | E108: E_HAWKB-1 | F108: DNO connection | G108: Battery | H108: 2023-11-01 | I108: 2023-11-30 | J108: 01.11.23 - 30.11.23 (1 months) | K108: As per FFR framework agreement | L108: 1500 | M108: 2300 | N108: 8 | O108: 1500 | P108: 2300 | Q108: 8 | R108: 1500 | S108: 2300 | T108: 8 | U108: 380.7008012 | X108: Yes | AC108: 7.2 | AD108: 18 | AE108: 18 | AF108: 7.2 | AG108: 18 | AH108: 7.2 | AI108: 18 | AL108: I
A109: 166.103 | B109: Rejected | C109: 1.2 | D109: Tesla Motors Limited | E109: E_SKELB-1 | F109: DNO connection | G109: Battery | H109: 2023-10-31 | I109: 2023-11-30 | J109: 31.10.23 - 30.11.23 (1 months) | K109: As per FFR framework agreement | L109: 2300 | M109: 700 | N109: 8 | O109: 2300 | P109: 700 | Q109: 8 | R109: 2300 | S109: 700 | T109: 8 | U109: 371.3 | X109: Yes | AC109: 18.8 | AD109: 47 | AE109: 47 | AF109: 18.8 | AG109: 47 | AH109: 18.8 | AI109: 47 | AL109: J
A110: 166.104 | B110: Rejected | C110: 1.2 | D110: Tesla Motors Limited | E110: E_SKELB-1 | F110: DNO connection | G110: Battery | H110: 2023-11-01 | I110: 2023-11-30 | J110: 01.11.23 - 30.11.23 (1 months) | K110: As per FFR framework agreement | L110: 700 | M110: 1500 | N110: 8 | O110: 700 | P110: 1500 | Q110: 8 | R110: 700 | S110: 1500 | T110: 8 | U110: 324.3 | X110: Yes | AC110: 18.8 | AD110: 47 | AE110: 47 | AF110: 18.8 | AG110: 47 | AH110: 18.8 | AI110: 47 | AL110: K
A111: 166.105 | B111: Rejected | C111: 1.2 | D111: Tesla Motors Limited | E111: E_SKELB-1 | F111: DNO connection | G111: Battery | H111: 2023-11-01 | I111: 2023-11-30 | J111: 01.11.23 - 30.11.23 (1 months) | K111: As per FFR framework agreement | L111: 1500 | M111: 2300 | N111: 8 | O111: 1500 | P111: 2300 | Q111: 8 | R111: 1500 | S111: 2300 | T111: 8 | U111: 606.3 | X111: Yes | AC111: 18.8 | AD111: 47 | AE111: 47 | AF111: 18.8 | AG111: 47 | AH111: 18.8 | AI111: 47 | AL111: L
A112: 166.106 | B112: Rejected | C112: 1.2 | D112: Tesla Motors Limited | E112: E_PILLB-1 | F112: DNO connection | G112: Battery | H112: 2023-10-31 | I112: 2023-11-30 | J112: 31.10.23 - 30.11.23 (1 months) | K112: As per FFR framework agreement | L112: 2300 | M112: 700 | N112: 8 | O112: 2300 | P112: 700 | Q112: 8 | R112: 2300 | S112: 700 | T112: 8 | U112: 416.5503721 | X112: Yes | AC112: 18.8 | AD112: 47 | AE112: 47 | AF112: 18.8 | AG112: 47 | AH112: 18.8 | AI112: 47 | AL112: M
A113: 166.107 | B113: Rejected | C113: 1.2 | D113: Tesla Motors Limited | E113: E_PILLB-1 | F113: DNO connection | G113: Battery | H113: 2023-11-01 | I113: 2023-11-30 | J113: 01.11.23 - 30.11.23 (1 months) | K113: As per FFR framework agreement | L113: 700 | M113: 1500 | N113: 8 | O113: 700 | P113: 1500 | Q113: 8 | R113: 700 | S113: 1500 | T113: 8 | U113: 397.2548177 | X113: Yes | AC113: 18.8 | AD113: 47 | AE113: 47 | AF113: 18.8 | AG113: 47 | AH113: 18.8 | AI113: 47 | AL113: N
A114: 166.108 | B114: Rejected | C114: 1.2 | D114: Tesla Motors Limited | E114: E_PILLB-1 | F114: DNO connection | G114: Battery | H114: 2023-11-01 | I114: 2023-11-30 | J114: 01.11.23 - 30.11.23 (1 months) | K114: As per FFR framework agreement | L114: 1500 | M114: 2300 | N114: 8 | O114: 1500 | P114: 2300 | Q114: 8 | R114: 1500 | S114: 2300 | T114: 8 | U114: 582.8 | X114: Yes | AC114: 18.8 | AD114: 47 | AE114: 47 | AF114: 18.8 | AG114: 47 | AH114: 18.8 | AI114: 47 | AL114: O
A115: 166.109 | B115: Rejected | C115: 1.2 | D115: Tesla Motors Limited | E115: E_BROAB-1 | F115: DNO connection | G115: Battery | H115: 2023-10-31 | I115: 2023-11-30 | J115: 31.10.23 - 30.11.23 (1 months) | K115: As per FFR framework agreement | L115: 2300 | M115: 700 | N115: 8 | O115: 2300 | P115: 700 | Q115: 8 | R115: 2300 | S115: 700 | T115: 8 | U115: 64.77918046 | X115: Yes | AC115: 3.6 | AD115: 9 | AE115: 9 | AF115: 3.6 | AG115: 9 | AH115: 3.6 | AI115: 9 | AL115: P | AM115: P is mutually exclusive to R
A116: 166.11 | B116: Rejected | C116: 1.2 | D116: Tesla Motors Limited | E116: E_BROAB-1 | F116: DNO connection | G116: Battery | H116: 2023-11-01 | I116: 2023-11-30 | J116: 01.11.23 - 30.11.23 (1 months) | K116: As per FFR framework agreement | L116: 700 | M116: 1500 | N116: 8 | O116: 700 | P116: 1500 | Q116: 8 | R116: 700 | S116: 1500 | T116: 8 | U116: 61.80025753 | X116: Yes | AC116: 3.6 | AD116: 9 | AE116: 9 | AF116: 3.6 | AG116: 9 | AH116: 3.6 | AI116: 9 | AL116: Q | AM116: Q is mutually exclusive to R
A117: 166.111 | B117: Rejected | C117: 1.2 | D117: Tesla Motors Limited | E117: E_BROAB-1 | F117: DNO connection | G117: Battery | H117: 2023-10-31 | I117: 2023-11-30 | J117: =IFERROR(TEXT(H117,"DD.MM.YY")&" - "&TEXT(I117,"DD.MM.YY")&" ("&DATEDIF(H117,I117+1,"m")&" months)","Tender End Date is Before Start Date") -> 31.10.23 - 30.11.23 (1 months) | K117: As per FFR framework agreement | L117: 2300 | M117: 2300 | N117: 24 | O117: 2300 | P117: 2300 | Q117: 24 | R117: 2300 | S117: 2300 | T117: 24 | U117: 91.48254159 | X117: Yes | AC117: 3.6 | AD117: 9 | AE117: 9 | AF117: 3.6 | AG117: 9 | AH117: 3.6 | AI117: 9 | AL117: R
A118: 166.112 | B118: Rejected | C118: 1.2 | D118: Tesla Motors Limited | E118: E_PILLB-2 | F118: DNO connection | G118: Battery | H118: 2023-10-31 | I118: 2023-11-30 | J118: =IFERROR(TEXT(H118,"DD.MM.YY")&" - "&TEXT(I118,"DD.MM.YY")&" ("&DATEDIF(H118,I118+1,"m")&" months)","Tender End Date is Before Start Date") -> 31.10.23 - 30.11.23 (1 months) | K118: As per FFR framework agreement | L118: 2300 | M118: 700 | N118: 8 | O118: 2300 | P118: 700 | Q118: 8 | R118: 2300 | S118: 700 | T118: 8 | U118: 374.02607 | X118: Yes | AC118: 18.8 | AD118: 47 | AE118: 47 | AF118: 18.8 | AG118: 47 | AH118: 18.8 | AI118: 47 | AL118: S
A119: 166.113 | B119: Rejected | C119: 1.2 | D119: Tesla Motors Limited | E119: E_PILLB-2 | F119: DNO connection | G119: Battery | H119: 2023-11-01 | I119: 2023-11-30 | J119: 01.11.23 - 30.11.23 (1 months) | K119: As per FFR framework agreement | L119: 700 | M119: 1500 | N119: 8 | O119: 700 | P119: 1500 | Q119: 8 | R119: 700 | S119: 1500 | T119: 8 | U119: 356.665401 | X119: Yes | AC119: 18.8 | AD119: 47 | AE119: 47 | AF119: 18.8 | AG119: 47 | AH119: 18.8 | AI119: 47 | AL119: T
A120: 166.114 | B120: Rejected | C120: 1.2 | D120: Tesla Motors Limited | E120: E_PILLB-2 | F120: DNO connection | G120: Battery | H120: 2023-11-01 | I120: 2023-11-30 | J120: 01.11.23 - 30.11.23 (1 months) | K120: As per FFR framework agreement | L120: 1500 | M120: 2300 | N120: 8 | O120: 1500 | P120: 2300 | Q120: 8 | R120: 1500 | S120: 2300 | T120: 8 | U120: 559.3 | X120: Yes | AC120: 18.8 | AD120: 47 | AE120: 47 | AF120: 18.8 | AG120: 47 | AH120: 18.8 | AI120: 47 | AL120: U
A121: 166.115 | B121: Rejected | C121: 1.2 | D121: Tesla Motors Limited | E121: E_CHAPB-1 | F121: DNO connection | G121: Battery | H121: 2023-10-31 | I121: 2023-11-30 | J121: 31.10.23 - 30.11.23 (1 months) | K121: As per FFR framework agreement | L121: 2300 | M121: 700 | N121: 8 | O121: 2300 | P121: 700 | Q121: 8 | R121: 2300 | S121: 700 | T121: 8 | U121: 449.4869553 | X121: Yes | AC121: 18.8 | AD121: 47 | AE121: 47 | AF121: 18.8 | AG121: 47 | AH121: 18.8 | AI121: 47 | AL121: V
A122: 166.116 | B122: Rejected | C122: 1.2 | D122: Tesla Motors Limited | E122: E_CHAPB-1 | F122: DNO connection | G122: Battery | H122: 2023-11-01 | I122: 2023-11-30 | J122: 01.11.23 - 30.11.23 (1 months) | K122: As per FFR framework agreement | L122: 700 | M122: 1500 | N122: 8 | O122: 700 | P122: 1500 | Q122: 8 | R122: 700 | S122: 1500 | T122: 8 | U122: 427.3985248 | X122: Yes | AC122: 18.8 | AD122: 47 | AE122: 47 | AF122: 18.8 | AG122: 47 | AH122: 18.8 | AI122: 47 | AL122: W
A123: 166.117 | B123: Rejected | C123: 1.2 | D123: Tesla Motors Limited | E123: E_CHAPB-1 | F123: DNO connection | G123: Battery | H123: 2023-11-01 | I123: 2023-11-30 | J123: 01.11.23 - 30.11.23 (1 months) | K123: As per FFR framework agreement | L123: 1500 | M123: 2300 | N123: 8 | O123: 1500 | P123: 2300 | Q123: 8 | R123: 1500 | S123: 2300 | T123: 8 | U123: 768.9126958 | X123: Yes | AC123: 18.8 | AD123: 47 | AE123: 47 | AF123: 18.8 | AG123: 47 | AH123: 18.8 | AI123: 47 | AL123: X
A124: 166.118 | B124: Rejected | C124: 1.2 | D124: Tesla Motors Limited | E124: E_FARNB-1 | F124: DNO connection | G124: Battery | H124: 2023-10-31 | I124: 2023-11-30 | J124: 31.10.23 - 30.11.23 (1 months) | K124: As per FFR framework agreement | L124: 2300 | M124: 700 | N124: 8 | O124: 2300 | P124: 700 | Q124: 8 | R124: 2300 | S124: 700 | T124: 8 | U124: 126 | X124: Yes | AC124: 7.2 | AD124: 18 | AE124: 18 | AF124: 7.2 | AG124: 18 | AH124: 7.2 | AI124: 18 | AL124: Y
A125: 166.119 | B125: Rejected | C125: 1.2 | D125: Tesla Motors Limited | E125: E_FARNB-1 | F125: DNO connection | G125: Battery | H125: 2023-11-01 | I125: 2023-11-30 | J125: 01.11.23 - 30.11.23 (1 months) | K125: As per FFR framework agreement | L125: 700 | M125: 1500 | N125: 8 | O125: 700 | P125: 1500 | Q125: 8 | R125: 700 | S125: 1500 | T125: 8 | U125: 117 | X125: Yes | AC125: 7.2 | AD125: 18 | AE125: 18 | AF125: 7.2 | AG125: 18 | AH125: 7.2 | AI125: 18 | AL125: Z
A126: 166.12 | B126: Rejected | C126: 1.2 | D126: Tesla Motors Limited | E126: E_FARNB-1 | F126: DNO connection | G126: Battery | H126: 2023-11-01 | I126: 2023-11-30 | J126: 01.11.23 - 30.11.23 (1 months) | K126: As per FFR framework agreement | L126: 1500 | M126: 2300 | N126: 8 | O126: 1500 | P126: 2300 | Q126: 8 | R126: 1500 | S126: 2300 | T126: 8 | U126: 341.4735118 | X126: Yes | AC126: 7.2 | AD126: 18 | AE126: 18 | AF126: 7.2 | AG126: 18 | AH126: 7.2 | AI126: 18 | AL126: AA
A127: 166.121 | B127: Rejected | C127: 1.2 | D127: UK Power Reserve Ltd | E127: AFFR-1 | F127: DNO connection | G127: DSF: Storage (for export) | H127: 2023-10-31 | I127: 2023-11-30 | J127: 31.10.23 - 30.11.23 (1 months) | K127: As per FFR framework agreement | L127: 2300 | M127: 2300 | N127: =IF(L127>M127, (2400-L127+M127)/100, IF(AND(L127="",M127="",L127=M127), "", IF(L127=M127,24,(M127-L127)/100))) -> 24 | O127: 2300 | P127: 2300 | Q127: 24 | R127: 2300 | S127: 2300 | T127: 24 | U127: =9.79*20 -> 195.8 | AC127: 8 | AD127: 20 | AE127: 20 | AF127: 8 | AG127: 20 | AH127: 8 | AI127: 20 | AP127: LE14
A128: 166.122 | B128: Rejected | C128: 1.2 | D128: UK Power Reserve Ltd | E128: AFFR-2 | F128: DNO connection | G128: DSF: Storage (for export) | H128: 2023-10-31 | I128: 2023-11-30 | J128: 31.10.23 - 30.11.23 (1 months) | K128: As per FFR framework agreement | L128: 2300 | M128: 2300 | N128: 24 | O128: 2300 | P128: 2300 | Q128: 24 | R128: 2300 | S128: 2300 | T128: 24 | U128: =8.24*20 -> 164.8 | AC128: 8 | AD128: 20 | AE128: 20 | AF128: 8 | AG128: 20 | AH128: 8 | AI128: 20 | AP128: CH65
A129: 166.123 | B129: Rejected | C129: 1.2 | D129: UK Power Reserve Ltd | E129: AFFR-3 | F129: DNO connection | G129: DSF: Storage (for export) | H129: 2023-10-31 | I129: 2023-11-30 | J129: =IFERROR(TEXT(H129,"DD.MM.YY")&" - "&TEXT(I129,"DD.MM.YY")&" ("&DATEDIF(H129,I129+1,"m")&" months)","Tender End Date is Before Start Date") -> 31.10.23 - 30.11.23 (1 months) | K129: As per FFR framework agreement | L129: 2300 | M129: 2300 | N129: 24 | O129: 2300 | P129: 2300 | Q129: 24 | R129: 2300 | S129: 2300 | T129: 24 | U129: =6.38*20 -> 127.6 | AC129: 8 | AD129: 20 | AE129: 20 | AF129: 8 | AG129: 20 | AH129: 8 | AI129: 20 | AP129: WA7
A130: 166.124 | B130: Accepted | C130: NA | D130: Upside Energy | E130: UPEN-2 | F130: DNO connection | G130: DSF: Storage (onsite) | H130: 2023-10-31 | I130: 2023-11-30 | J130: 31.10.23 - 30.11.23 (1 months) | K130: As per FFR framework agreement | L130: 2300 | M130: 1500 | N130: 16 | O130: 2300 | P130: 1500 | Q130: 16 | R130: 2300 | S130: 1500 | T130: 16 | U130: 5.15 | AC130: 0.4 | AD130: 1 | AE130: 1 | AF130: 0.4 | AG130: 1 | AH130: 0.4 | AI130: 1 | AP130: NR12
A131: 166.125 | B131: Rejected | C131: 1.2 | D131: BESS HOLDCO 2 LIMITED | E131: AG-ZEN03J | F131: DNO connection | G131: Battery | H131: 2023-10-31 | I131: 2023-11-30 | J131: 31.10.23 - 30.11.23 (1 months) | K131: As per FFR framework agreement | L131: 2300 | M131: 2300 | N131: 24 | O131: 2300 | P131: 2300 | Q131: 24 | R131: 2300 | S131: 2300 | T131: 24 | U131: 218.43 | AC131: 10.8 | AD131: 27 | AE131: 27 | AF131: 10.8 | AG131: 27 | AH131: 10.8 | AI131: 27 | AL131: A | AM131: cannot be accepted with B or C | AP131: ME20
A132: 166.126 | B132: Rejected | C132: 1.2 | D132: BESS HOLDCO 2 LIMITED | E132: AG-ZEN03J | F132: DNO connection | G132: Battery | H132: 2023-11-01 | I132: 2023-11-30 | J132: 01.11.23 - 30.11.23 (1 months) | K132: As per FFR framework agreement | L132: 1500 | M132: 2300 | N132: 8 | O132: 1500 | P132: 2300 | Q132: 8 | R132: 1500 | S132: 2300 | T132: 8 | U132: 324 | AC132: 10.8 | AD132: 27 | AE132: 27 | AF132: 10.8 | AG132: 27 | AH132: 10.8 | AI132: 27 | AL132: B | AM132: cannot be accepted with A | AP132: ME20
A133: 166.127 | B133: Rejected | C133: 1.2 | D133: BESS HOLDCO 2 LIMITED | E133: AG-ZEN03J | F133: DNO connection | G133: Battery | H133: 2023-11-01 | I133: 2023-11-30 | J133: 01.11.23 - 30.11.23 (1 months) | K133: As per FFR framework agreement | L133: 700 | M133: 1500 | N133: 8 | O133: 700 | P133: 1500 | Q133: 8 | R133: 700 | S133: 1500 | T133: 8 | U133: 207.9 | AC133: 10.8 | AD133: 27 | AE133: 27 | AF133: 10.8 | AG133: 27 | AH133: 10.8 | AI133: 27 | AL133: C | AM133: cannot be accepted with A | AP133: ME20
A134: 166.128 | B134: Rejected | C134: 1.2 | D134: BESS HOLDCO 2 LIMITED | E134: ZEN02A | F134: DNO connection | G134: Battery | H134: 2023-10-31 | I134: 2023-11-30 | J134: 31.10.23 - 30.11.23 (1 months) | K134: As per FFR framework agreement | L134: 2300 | M134: 2300 | N134: 24 | O134: 2300 | P134: 2300 | Q134: 24 | R134: 2300 | S134: 2300 | T134: 24 | U134: 161 | AC134: 8 | AD134: 20 | AE134: 20 | AF134: 8 | AG134: 20 | AH134: 8 | AI134: 20 | AL134: D | AM134: cannot be accepted with E or F | AP134: CO10
A135: 166.129 | B135: Rejected | C135: 1.2 | D135: BESS HOLDCO 2 LIMITED | E135: ZEN02A | F135: DNO connection | G135: Battery | H135: 2023-11-01 | I135: 2023-11-30 | J135: 01.11.23 - 30.11.23 (1 months) | K135: As per FFR framework agreement | L135: 1500 | M135: 2300 | N135: 8 | O135: 1500 | P135: 2300 | Q135: 8 | R135: 1500 | S135: 2300 | T135: 8 | U135: 242 | AC135: 8 | AD135: 20 | AE135: 20 | AF135: 8 | AG135: 20 | AH135: 8 | AI135: 20 | AL135: E | AM135: cannot be accepted with D | AP135: CO10
A136: =A135+0.001 -> 166.13 | B136: Rejected | C136: 1.2 | D136: BESS HOLDCO 2 LIMITED | E136: ZEN02A | F136: DNO connection | G136: Battery | H136: 2023-11-01 | I136: 2023-11-30 | J136: 01.11.23 - 30.11.23 (1 months) | K136: As per FFR framework agreement | L136: 700 | M136: 1500 | N136: 8 | O136: 700 | P136: 1500 | Q136: 8 | R136: 700 | S136: 1500 | T136: 8 | U136: 152 | AC136: 8 | AD136: 20 | AE136: 20 | AF136: 8 | AG136: 20 | AH136: 8 | AI136: 20 | AL136: F | AM136: cannot be accepted with D | AP136: CO10
A137: 166.131 | B137: Rejected | C137: 1.2 | D137: BESS HoldCo 3 Ltd | E137: DBESSH-33 | F137: DNO connection | G137: Battery | H137: 2023-10-31 | I137: 2023-11-30 | J137: 31.10.23 - 30.11.23 (1 months) | K137: As per FFR framework agreement | L137: 2300 | M137: 2300 | N137: 24 | O137: 2300 | P137: 2300 | Q137: 24 | R137: 2300 | S137: 2300 | T137: 24 | U137: 56.49 | AC137: 2.8 | AD137: 7 | AE137: 7 | AF137: 2.8 | AG137: 7 | AH137: 2.8 | AI137: 7 | AL137: G | AM137: cannot be accepted with H or I | AP137: CV37
A138: 166.132 | B138: Rejected | C138: 1.2 | D138: BESS HoldCo 3 Ltd | E138: DBESSH-33 | F138: DNO connection | G138: Battery | H138: 2023-11-01 | I138: 2023-11-30 | J138: 01.11.23 - 30.11.23 (1 months) | K138: As per FFR framework agreement | L138: 1500 | M138: 2300 | N138: 8 | O138: 1500 | P138: 2300 | Q138: 8 | R138: 1500 | S138: 2300 | T138: 8 | U138: 87.5 | AC138: 2.8 | AD138: 7 | AE138: 7 | AF138: 2.8 | AG138: 7 | AH138: 2.8 | AI138: 7 | AL138: H | AM138: cannot be accepted with G | AP138: CV37
A139: 166.133 | B139: Rejected | C139: 1.2 | D139: BESS HoldCo 3 Ltd | E139: DBESSH-33 | F139: DNO connection | G139: Battery | H139: 2023-11-01 | I139: 2023-11-30 | J139: 01.11.23 - 30.11.23 (1 months) | K139: As per FFR framework agreement | L139: 700 | M139: 1500 | N139: 8 | O139: 700 | P139: 1500 | Q139: 8 | R139: 700 | S139: 1500 | T139: 8 | U139: 52.5 | AC139: 2.8 | AD139: 7 | AE139: 7 | AF139: 2.8 | AG139: 7 | AH139: 2.8 | AI139: 7 | AL139: I | AM139: cannot be accepted with G | AP139: CV37
A140: 166.134 | B140: Rejected | C140: 1.2 | D140: VEST Energy Limited | E140: VEST-1 | F140: DNO connection | G140: DSF: Storage (onsite) | H140: 2023-10-31 | I140: 2023-11-30 | J140: 31.10.23 - 30.11.23 (1 months) | K140: As per FFR framework agreement | L140: 2300 | M140: 2300 | N140: =IF(L140>M140, (2400-L140+M140)/100, IF(AND(L140="",M140="",L140=M140), "", IF(L140=M140,24,(M140-L140)/100))) -> 24 | O140: 2300 | P140: 2300 | Q140: =IF(O140>P140, (2400-O140+P140)/100, IF(AND(O140="",P140="",O140=P140), "", IF(O140=P140,24,(P140-O140)/100))) -> 24 | R140: 2300 | S140: 2300 | T140: =IF(R140>S140, (2400-R140+S140)/100, IF(AND(R140="",S140="",R140=S140), "", IF(R140=S140,24,(S140-R140)/100))) -> 24 | U140: 12.1 | AC140: 0.8 | AD140: 2 | AE140: 2 | AF140: 0.8 | AG140: 2 | AH140: 0.8 | AI140: 2 | AP140: PL6 7
A141: 166.135 | B141: Accepted | C141: NA | D141: VEST Energy Limited | E141: VEST-2 | F141: DNO connection | G141: DSF: Storage (onsite) | H141: 2023-10-31 | I141: 2023-11-30 | J141: 31.10.23 - 30.11.23 (1 months) | K141: As per FFR framework agreement | L141: 2300 | M141: 700 | N141: 8 | O141: 2300 | P141: 700 | Q141: 8 | R141: 2300 | S141: 700 | T141: 8 | U141: 18.4 | AC141: 1.6 | AD141: 4 | AE141: 4 | AF141: 1.6 | AG141: 4 | AH141: 1.6 | AI141: 4 | AP141: CF33
A142: 166.136 | B142: Accepted | C142: NA | D142: VEST Energy Limited | E142: VEST-2 | F142: DNO connection | G142: DSF: Storage (onsite) | H142: 2023-11-01 | I142: 2023-11-30 | J142: 01.11.23 - 30.11.23 (1 months) | K142: As per FFR framework agreement | L142: 700 | M142: 1500 | N142: =IF(L142>M142, (2400-L142+M142)/100, IF(AND(L142="",M142="",L142=M142), "", IF(L142=M142,24,(M142-L142)/100))) -> 8 | O142: 700 | P142: 1500 | Q142: =IF(O142>P142, (2400-O142+P142)/100, IF(AND(O142="",P142="",O142=P142), "", IF(O142=P142,24,(P142-O142)/100))) -> 8 | R142: 700 | S142: 1500 | T142: =IF(R142>S142, (2400-R142+S142)/100, IF(AND(R142="",S142="",R142=S142), "", IF(R142=S142,24,(S142-R142)/100))) -> 8 | U142: 21.92 | AC142: 1.6 | AD142: 4 | AE142: 4 | AF142: 1.6 | AG142: 4 | AH142: 1.6 | AI142: 4 | AP142: CF33
A143: 166.137 | B143: Accepted | C143: NA | D143: VEST Energy Limited | E143: VEST-2 | F143: DNO connection | G143: DSF: Storage (onsite) | H143: 2023-11-01 | I143: 2023-11-30 | J143: 01.11.23 - 30.11.23 (1 months) | K143: As per FFR framework agreement | L143: 1500 | M143: 2300 | N143: 8 | O143: 1500 | P143: 2300 | Q143: 8 | R143: 1500 | S143: 2300 | T143: 8 | U143: 23.2 | AC143: 1.6 | AD143: 4 | AE143: 4 | AF143: 1.6 | AG143: 4 | AH143: 1.6 | AI143: 4 | AP143: CF33
A144: 166.138 | B144: Accepted | C144: NA | D144: VEST Energy Limited | E144: VEST-3 | F144: DNO connection | G144: DSF: Storage (onsite) | H144: 2023-10-31 | I144: 2023-11-30 | J144: 31.10.23 - 30.11.23 (1 months) | K144: As per FFR framework agreement | L144: 2300 | M144: 700 | N144: =IF(L144>M144, (2400-L144+M144)/100, IF(AND(L144="",M144="",L144=M144), "", IF(L144=M144,24,(M144-L144)/100))) -> 8 | O144: 2300 | P144: 700 | Q144: =IF(O144>P144, (2400-O144+P144)/100, IF(AND(O144="",P144="",O144=P144), "", IF(O144=P144,24,(P144-O144)/100))) -> 8 | R144: 2300 | S144: 700 | T144: =IF(R144>S144, (2400-R144+S144)/100, IF(AND(R144="",S144="",R144=S144), "", IF(R144=S144,24,(S144-R144)/100))) -> 8 | U144: 17.48 | AC144: 1.6 | AD144: 4 | AE144: 4 | AF144: 1.6 | AG144: 4 | AH144: 1.6 | AI144: 4 | AP144: TS13
A145: 166.139 | B145: Accepted | C145: NA | D145: VEST Energy Limited | E145: VEST-3 | F145: DNO connection | G145: DSF: Storage (onsite) | H145: 2023-11-01 | I145: 2023-11-30 | J145: 01.11.23 - 30.11.23 (1 months) | K145: As per FFR framework agreement | L145: 700 | M145: 1500 | N145: =IF(L145>M145, (2400-L145+M145)/100, IF(AND(L145="",M145="",L145=M145), "", IF(L145=M145,24,(M145-L145)/100))) -> 8 | O145: 700 | P145: 1500 | Q145: 8 | R145: 700 | S145: 1500 | T145: 8 | U145: 20.84 | AC145: 1.6 | AD145: 4 | AE145: 4 | AF145: 1.6 | AG145: 4 | AH145: 1.6 | AI145: 4 | AP145: TS13
A146: 166.14 | B146: Accepted | C146: NA | D146: VEST Energy Limited | E146: VEST-3 | F146: DNO connection | G146: DSF: Storage (onsite) | H146: 2023-11-01 | I146: 2023-11-30 | J146: 01.11.23 - 30.11.23 (1 months) | K146: As per FFR framework agreement | L146: 1500 | M146: 2300 | N146: =IF(L146>M146, (2400-L146+M146)/100, IF(AND(L146="",M146="",L146=M146), "", IF(L146=M146,24,(M146-L146)/100))) -> 8 | O146: 1500 | P146: 2300 | Q146: 8 | R146: 1500 | S146: 2300 | T146: 8 | U146: 22.04 | AC146: 1.6 | AD146: 4 | AE146: 4 | AF146: 1.6 | AG146: 4 | AH146: 1.6 | AI146: 4 | AP146: TS13
A147: 166.141 | B147: Rejected | C147: 1.2 | D147: Anesco Limited | E147: ANSC-101 | F147: DNO connection | G147: DSF: Storage (for export) | H147: 2023-10-31 | I147: 2023-11-30 | J147: 31.10.23 - 30.11.23 (1 months) | K147: As per FFR framework agreement | L147: 2300 | M147: 700 | N147: 8 | O147: 2300 | P147: 700 | Q147: 8 | R147: 2300 | S147: 700 | T147: 8 | U147: 96.96 | AC147: 3.2 | AD147: 8 | AE147: 8 | AF147: 3.2 | AG147: 8 | AH147: 3.2 | AI147: 8
A148: 166.142 | B148: Rejected | C148: 1.2 | D148: Anesco Limited | E148: ANSC-101 | F148: DNO connection | G148: DSF: Storage (for export) | H148: 2023-11-01 | I148: 2023-11-30 | J148: 01.11.23 - 30.11.23 (1 months) | K148: As per FFR framework agreement | L148: 700 | M148: 1500 | N148: =IF(L148>M148, (2400-L148+M148)/100, IF(AND(L148="",M148="",L148=M148), "", IF(L148=M148,24,(M148-L148)/100))) -> 8 | O148: 700 | P148: 1500 | Q148: =IF(O148>P148, (2400-O148+P148)/100, IF(AND(O148="",P148="",O148=P148), "", IF(O148=P148,24,(P148-O148)/100))) -> 8 | R148: 700 | S148: 1500 | T148: =IF(R148>S148, (2400-R148+S148)/100, IF(AND(R148="",S148="",R148=S148), "", IF(R148=S148,24,(S148-R148)/100))) -> 8 | U148: 100.4 | AC148: 3.2 | AD148: 8 | AE148: 8 | AF148: 3.2 | AG148: 8 | AH148: 3.2 | AI148: 8
A149: 166.143 | B149: Rejected | C149: 1.2 | D149: Anesco Limited | E149: ANSC-101 | F149: DNO connection | G149: DSF: Storage (for export) | H149: 2023-11-01 | I149: 2023-11-30 | J149: 01.11.23 - 30.11.23 (1 months) | K149: As per FFR framework agreement | L149: 1500 | M149: 2300 | N149: 8 | O149: 1500 | P149: 2300 | Q149: 8 | R149: 1500 | S149: 2300 | T149: 8 | U149: 149.04 | AC149: 3.2 | AD149: 8 | AE149: 8 | AF149: 3.2 | AG149: 8 | AH149: 3.2 | AI149: 8
A150: =A149+0.001 -> 166.144 | B150: Rejected | C150: 1.2 | D150: Anesco Limited | E150: ANSC-102 | F150: DNO connection | G150: DSF: Storage (for export) | H150: 2023-10-31 | I150: 2023-11-30 | J150: 31.10.23 - 30.11.23 (1 months) | K150: As per FFR framework agreement | L150: 2300 | M150: 700 | N150: =IF(L150>M150, (2400-L150+M150)/100, IF(AND(L150="",M150="",L150=M150), "", IF(L150=M150,24,(M150-L150)/100))) -> 8 | O150: 2300 | P150: 700 | Q150: =IF(O150>P150, (2400-O150+P150)/100, IF(AND(O150="",P150="",O150=P150), "", IF(O150=P150,24,(P150-O150)/100))) -> 8 | R150: 2300 | S150: 700 | T150: =IF(R150>S150, (2400-R150+S150)/100, IF(AND(R150="",S150="",R150=S150), "", IF(R150=S150,24,(S150-R150)/100))) -> 8 | U150: 148.47 | AC150: 2.8 | AD150: 7 | AE150: 7 | AF150: 2.8 | AG150: 7 | AH150: 2.8 | AI150: 7
A151: 166.145 | B151: Rejected | C151: 1.2 | D151: Anesco Limited | E151: ANSC-102 | F151: DNO connection | G151: DSF: Storage (for export) | H151: 2023-11-01 | I151: 2023-11-30 | J151: 01.11.23 - 30.11.23 (1 months) | K151: As per FFR framework agreement | L151: 700 | M151: 1500 | N151: 8 | O151: 700 | P151: 1500 | Q151: 8 | R151: 700 | S151: 1500 | T151: 8 | U151: 155.05 | AC151: 2.8 | AD151: 7 | AE151: 7 | AF151: 2.8 | AG151: 7 | AH151: 2.8 | AI151: 7
A152: 166.146 | B152: Rejected | C152: 1.2 | D152: Anesco Limited | E152: ANSC-102 | F152: DNO connection | G152: DSF: Storage (for export) | H152: 2023-11-01 | I152: 2023-11-30 | J152: 01.11.23 - 30.11.23 (1 months) | K152: As per FFR framework agreement | L152: 1500 | M152: 2300 | N152: 8 | O152: 1500 | P152: 2300 | Q152: 8 | R152: 1500 | S152: 2300 | T152: 8 | U152: 201.32 | AC152: 2.8 | AD152: 7 | AE152: 7 | AF152: 2.8 | AG152: 7 | AH152: 2.8 | AI152: 7
A153: 166.147 | B153: Rejected | C153: 1.2 | D153: Anesco Limited | E153: ANSC-011 | F153: DNO connection | G153: DSF: Storage (for export) | H153: 2023-10-31 | I153: 2023-11-30 | J153: 31.10.23 - 30.11.23 (1 months) | K153: As per FFR framework agreement | L153: 2300 | M153: 700 | N153: 8 | O153: 2300 | P153: 700 | Q153: 8 | R153: 2300 | S153: 700 | T153: 8 | U153: 21.06 | AC153: 1.2 | AD153: 3 | AE153: 3 | AF153: 1.2 | AG153: 3 | AH153: 1.2 | AI153: 3
A154: 166.148 | B154: Rejected | C154: 1.2 | D154: Anesco Limited | E154: ANSC-011 | F154: DNO connection | G154: DSF: Storage (for export) | H154: 2023-11-01 | I154: 2023-11-30 | J154: 01.11.23 - 30.11.23 (1 months) | K154: As per FFR framework agreement | L154: 700 | M154: 1500 | N154: =IF(L154>M154, (2400-L154+M154)/100, IF(AND(L154="",M154="",L154=M154), "", IF(L154=M154,24,(M154-L154)/100))) -> 8 | O154: 700 | P154: 1500 | Q154: =IF(O154>P154, (2400-O154+P154)/100, IF(AND(O154="",P154="",O154=P154), "", IF(O154=P154,24,(P154-O154)/100))) -> 8 | R154: 700 | S154: 1500 | T154: =IF(R154>S154, (2400-R154+S154)/100, IF(AND(R154="",S154="",R154=S154), "", IF(R154=S154,24,(S154-R154)/100))) -> 8 | U154: 20.67 | AC154: 1.2 | AD154: 3 | AE154: 3 | AF154: 1.2 | AG154: 3 | AH154: 1.2 | AI154: 3
A155: 166.149 | B155: Accepted | C155: NA | D155: Anesco Limited | E155: ANSC-011 | F155: DNO connection | G155: DSF: Storage (for export) | H155: 2023-11-01 | I155: 2023-11-30 | J155: 01.11.23 - 30.11.23 (1 months) | K155: As per FFR framework agreement | L155: 1500 | M155: 2300 | N155: 8 | O155: 1500 | P155: 2300 | Q155: 8 | R155: 1500 | S155: 2300 | T155: 8 | U155: 34.74 | AC155: 1.2 | AD155: 3 | AE155: 3 | AF155: 1.2 | AG155: 3 | AH155: 1.2 | AI155: 3
B157: Code | D157: Reason
B158: 1 | C158: Beneficial | E158: 1.1 | F158: Req. satisifed by more beneficial bids
E159: 1.2 | F159: No outstanding req.
E160: 1.3 | F160: Desired procurement volume already met
E161: 1.4 | F161: Formed part of AON. Not collectively beneficial
B162: 2 | C162: Price not beneificial across tendered period
B163: 3 | C163: Does not meet tender prerequisites
B164: 4 | C164: Multiple tenders received for the same unit
B165: 5 | C165: Beyond desired procument volume
